Workbook

Sheet Contents
A1: Puget Sound Energy
A2: Docket No. UE-170033
A3: Exhibit RCS-3
A4: Electric Utility Revenue Requirement and Adjustment Schedules
A5: Accompanying the Direct Testimony of Ralph Smith | S5: Schedule | U5: =#REF! -> 
A7: Number | B7: Description | C7: No. of Pages | D7: Confidential | E7: Applies to This Utility | F7: Page No. | L7: Begin | M7: End | O7: Range
B8: Revenue Requirement Summary Schedules | L8: 1 | N8: -
A9: =H9 -> A | B9: Calculation of Revenue Deficiency (Sufficiency) | C9: 2 | D9: No | E9: Yes | F9: =$O$9 -> 2-3 | H9: A | L9: 2 | M9: =L8+C9 -> 3 | N9: - | O9: =IF(L9=M9,M9,L9&N9&M9) -> 2-3 | S9: =$S$5&A9 -> Schedule A
A10: =H10 -> A-1 | B10: Gross Revenue Conversion Factor | C10: 1 | D10: No | E10: Yes | F10: =O10 -> 4 | H10: A-1 | L10: =M9+1 -> 4 | M10: =M9+C10 -> 4 | N10: - | O10: 4 | S10: Schedule A-1
A11: B | B11: Adjusted Rate Base | C11: 1 | D11: No | E11: Yes | F11: 5 | H11: B | L11: 5 | M11: 5 | N11: - | O11: 5 | S11: Schedule B
A12: B.1 | B12: Summary of Rate Base Adjustments | C12: 1 | D12: No | E12: Yes | F12: 6 | H12: B.1 | L12: 6 | M12: 6 | N12: - | O12: 6 | S12: Schedule B.1
A13: C | B13: Adjusted Net Operating Income | C13: 1 | D13: No | E13: Yes | F13: 7 | H13: C | L13: 7 | M13: 7 | N13: - | O13: 7 | S13: Schedule C
A14: C.1 | B14: Summary of Net Operating Income Adjustments | C14: 2 | D14: No | E14: Yes | F14: 8-9 | H14: C.1 | L14: 8 | M14: 9 | N14: - | O14: 8-9 | S14: Schedule C.1
A15: D | B15: Capital Structure and Cost Rates | C15: 1 | D15: No | E15: Yes | F15: 10 | H15: D | L15: 10 | M15: 10 | N15: - | O15: 10 | S15: Schedule D
A16: E | B16: Consolidated Tax Adjustment | D16: Yes | E16: Yes | F16: 1110 | H16: E | L16: 11 | M16: =M15+C16 -> 10 | O16: 1110 | S16: Schedule E
B18: Rate Base Adjustments
A19: =H19&P19 -> B-1 | B19: ='B-1'!A2 -> White River | C19: 1 | D19: No | E19: Yes | F19: =O19 -> 11 | H19: B- | L19: =M16+1 -> 11 | M19: =M16+C19 -> 11 | N19: - | O19: =IF(L19=M19,M19,L19&N19&M19) -> 11 | P19: 1 | Q19: =$Q$6&$S$5&H18 -> Schedule
A20: =H20&P20 -> B-2 | B20: ='B-2'!A2 -> Production Adjustment | C20: 1 | D20: No | E20: Yes | F20: 12 | H20: B- | L20: =M19+1 -> 12 | M20: =M19+C20 -> 12 | N20: - | O20: =IF(L20=M20,M20,L20&N20&M20) -> 12 | P20: =P19+1 -> 2 | Q20: =$Q$6&$S$5&H19 -> Schedule B-
A21: B-3 | B21: ='B-3'!A2 -> Accumulated Depreciation Related to Proposed Depreciation Rates | C21: 1 | D21: No | E21: Yes | F21: 13 | H21: B- | L21: =M20+1 -> 13 | M21: 13 | N21: - | O21: =IF(L21=M21,M21,L21&N21&M21) -> 13 | P21: =P20+1 -> 3 | Q21: =$Q$6&$S$5&H20 -> Schedule B-
A22: B-4 | B22: ='B-4'!A2 -> Accumulated Deferred Income Taxes Related to Proposed Depreciation Rates | C22: 1 | D22: No | E22: Yes | F22: 14 | H22: B- | L22: 14 | M22: 14 | N22: - | O22: 14 | P22: =P21+1 -> 4 | Q22: =$Q$6&$S$5&H21 -> Schedule B-
A23: B-5 | B23: ='B-5'!A2 -> Electric Plant Held For Future Use | C23: 1 | D23: No | E23: Yes | F23: 15 | H23: B- | L23: 15 | M23: 15 | O23: 15 | P23: 5
H24: B- | L24: =M23+1 -> 16 | M24: 15 | N24: - | O24: 16-15 | P24: 6
H25: B- | L25: 16 | M25: 15 | N25: - | O25: 16-15 | P25: 7
H26: B- | L26: 16 | M26: 15 | N26: - | O26: 16-15 | P26: 8
H27: B- | L27: 16 | M27: 15 | N27: - | O27: 16-15 | P27: 8
B29: Net Operating Income Adjustments
A30: =H30&P30 -> C-1 | B30: ='C-1'!A2 -> Temperature Normalization | C30: 1 | D30: No | E30: No | F30: =O30 -> 16 | H30: C- | L30: =M27+1 -> 16 | M30: =M27+C30 -> 16 | N30: - | O30: =IF(L30=M30,M30,L30&N30&M30) -> 16 | P30: 1 | Q30: =$Q$6&$S$5&H30 -> Schedule C-
A31: =H31&P31 -> C-2 | B31: ='C-2 '!A2 -> Bad Debt Expense | C31: 1 | D31: No | E31: Yes | F31: 17 | H31: C- | L31: =M30+1 -> 17 | M31: =M30+C31 -> 17 | N31: - | O31: =IF(L31=M31,M31,L31&N31&M31) -> 17 | P31: =P30+1 -> 2 | Q31: =$Q$6&$S$5&H30 -> Schedule C- | U31: 1
A32: C-3 | B32: ='C-3'!A2 -> Incentive Compensation | C32: 1 | D32: No | E32: Yes | F32: 18 | H32: C- | L32: =M31+1 -> 18 | M32: 18 | N32: - | O32: 18 | P32: =P31+1 -> 3 | Q32: Schedule C- | U32: =U31+1 -> 2
A33: C-4 | B33: ='C-4'!A2 -> Interest on Customer Deposits | C33: 1 | D33: No | E33: Yes | F33: 19 | H33: C- | L33: 19 | M33: 19 | N33: - | O33: 19 | P33: 4 | Q33: Schedule C- | U33: =U32+1 -> 3
A34: C-5 | B34: ='C-5'!A2 -> Payroll Expense | C34: 1 | D34: No | E34: Yes | F34: 20 | H34: C- | L34: 20 | M34: 20 | N34: - | O34: 20 | P34: 5 | Q34: Schedule C-
A35: C-6 | B35: ='C-6'!A2 -> Investment Plan Expense | C35: 1 | D35: No | E35: Yes | F35: 21 | H35: C- | L35: =M34+1 -> 21 | M35: 21 | N35: - | O35: 21 | P35: 6 | Q35: Schedule C- | U35: =U33+1 -> 4
A36: C-7 | B36: ='C-7'!A2 -> Power Costs | C36: 1 | D36: No | E36: Yes | F36: 22 | H36: C- | L36: 22 | M36: 22 | N36: - | O36: 22 | P36: 7 | Q36: Schedule C- | U36: 5
A37: C-8 | B37: ='C-8'!A2 -> Montana Electric Energy Tax | C37: 1 | D37: No | E37: Yes | F37: 23 | H37: C- | L37: 23 | M37: 23 | N37: - | O37: 23 | P37: 8 | Q37: Schedule C- | U37: 6
A38: C-9 | B38: ='C-9 P2'!A2 -> Storm Damage Expense | C38: 2 | D38: No | E38: Yes | F38: 24-25 | H38: C- | L38: 24 | M38: 25 | N38: - | O38: 24-25 | P38: 9 | Q38: Schedule C- | U38: =U37+1 -> 7
A39: C-10 | B39: ='C-10'!A2 -> White River Amortization Expense | C39: 1 | D39: No | E39: Yes | F39: 26 | H39: C- | L39: 26 | M39: 26 | N39: - | O39: 26 | P39: 10 | Q39: Schedule C- | U39: 8
A40: C-11 | B40: ='C-11'!A2 -> Production Adjustment | C40: 1 | D40: No | E40: Yes | F40: 27 | H40: C- | L40: 27 | M40: 27 | N40: - | O40: 27 | P40: 11 | Q40: Schedule C- | U40: 9
A41: C-12 | B41: ='C-12 '!A2 -> Depreciation and Amortization Expense at Proposed New Depreciation Rates | C41: 1 | D41: No | E41: Yes | F41: 28 | H41: C- | L41: 28 | M41: 28 | N41: - | O41: 28 | P41: 12 | Q41: Schedule C- | U41: 10
A42: C-13 | B42: ='C-13 Int Sync'!A2 -> Interest Synchronization | C42: 1 | D42: No | E42: Yes | F42: 29 | H42: C- | L42: 29 | M42: 29 | N42: - | O42: 29 | P42: 13 | Q42: Schedule C- | U42: 11
A43: C-14 | B43: ='C-14 '!A2 -> Pension Expense | C43: 1 | D43: No | E43: Yes | F43: 30 | H43: C- | L43: =M42+1 -> 30 | M43: 30 | N43: - | O43: =IF(L43=M43,M43,L43&N43&M43) -> 30 | P43: 14 | Q43: =$Q$6&$S$5&H43 -> Schedule C- | U43: 12
A44: C-15 | B44: ='C-15'!A2 -> Environmental Remediation | C44: 1 | D44: No | E44: Yes | F44: =O44 -> 31 | H44: C- | L44: =M43+1 -> 31 | M44: 31 | N44: - | O44: =IF(L44=M44,M44,L44&N44&M44) -> 31 | P44: 15 | Q44: =$Q$6&$S$5&H44 -> Schedule C- | U44: 13
A45: C-16 | B45: ='C-16'!A2 -> Credit Card Payment Processing Costs | C45: 1 | D45: No | E45: Yes | F45: =O45 -> 32 | H45: C- | L45: =M44+1 -> 32 | M45: 32 | N45: - | O45: =IF(L45=M45,M45,L45&N45&M45) -> 32 | P45: =P44+1 -> 16 | Q45: =$Q$6&$S$5&H45 -> Schedule C- | U45: 14
H46: C- | L46: =M43+1 -> 31 | M46: =M43+C44 -> 31
L47: =M44+1 -> 32 | M47: =M42+C47 -> 29 | N47: - | O47: =IF(L47=M47,M47,L47&N47&M47) -> 32-29
L48: =M45+1 -> 33 | M48: =M47+C48 -> 29 | N48: - | O48: 33-29
B50: Total Pages (including Contents page) | C50: =SUM(C9:C48)+1 -> 32

Sheet A
A1: Puget Sound Energy - Electric Operations | K1: =Contents!A3 -> Exhibit RCS-3
A2: Calculation of Revenue Deficiency (Sufficiency) | K2: Schedule A
K3: =Contents!A2 -> Docket No. UE-170033
A4: Test Year Ended September 30, 2016 | K4: Page 1 of 2
A7: Line | E7: Schedule | G7: Per | I7: Per
A8: No. | C8: Description | E8: Reference | G8: Company | I8: Public Counsel | K8: Difference
G9: (A) | I9: (B) | K9: (C )
A11: 1 | C11: Adjusted rate base | E11: B | G11: =B!E19 -> 5097962433 | I11: =B!I19 -> 5106130927 | K11: =I11-G11 -> 8168493.972
A12: =A11+1 -> 2 | C12: Rate of return | E12: D | G12: =D!I13 -> 0.0774 | I12: =D!I22 -> 0.0728
A13: 3 | C13: Net operating income required (Calculated) | G13: =ROUND(G11*G12,0) -> 394582292 | I13: =ROUND(I11*I12,0) -> 371726331 | K13: =I13-G13 -> -22855961
A14: 4 | C14: Adjusted net operating income | E14: C | G14: ='C'!E42 -> 302305321.6 | I14: ='C'!I42 -> 327940092 | K14: =I14-G14 -> 25634770.43
A15: 5 | C15: Net operating income deficiency | G15: =G13-G14 -> 92276970.42 | I15: =I13-I14 -> 43786238.99 | K15: =I15-G15 -> -48490731.43
A16: 6 | C16: Gross revenue conversion factor | E16: A-1 | G16: ='A-1'!$G$20 -> 0.619051 | I16: ='A-1'!K20 -> 0.619051
A17: 7 | C17: Revenue deficiency (Sufficiency) | G17: =ROUND(G15/G16,0) -> 149061984 | I17: =ROUND(I15/I16,0) -> 70731231 | K17: =I17-G17 -> -78330753
A18: 8 | C18: Sales from Resale - Firm | G18: 406089.5577 | I18: 405142.8092 | K18: =I18-G18 -> -946.7484967
A19: 9 | C19: Net Revenue Requirement Deficiency | G19: =G17-G18 -> 148655894.4 | I19: =I17-I18 -> 70326088.19 | K19: =K17-K18 -> -78329806.25
A22: Notes and Source
A23: Amounts in Column A are from PSE's original filing. Company revisions contained in its April 3, 2017 supplemental filing are
A24: treated as adjustments to PSE's original filing for purposes of this presentation.
A26: =A19+1 -> 10 | C26: Operating Revenue at Current Rates | E26: C | G26: ='C'!E16 -> 2064349033 | I26: ='C'!I16 -> 2067334450
A27: =A26+1 -> 11 | C27: Percentage Increase | E27: L9 / L10 | G27: =G19/G26 -> 0.07201102723 | I27: =I19/I26 -> 0.0340177605

Sheet A P2
A1: =Contents!A1 -> Puget Sound Energy | M1: =Contents!A3 -> Exhibit RCS-3
A2: Revenue Requirement Reconciliation | M2: Schedule A
M3: =Contents!A2 -> Docket No. UE-170033
A4: =A!A4 -> Test Year Ended September 30, 2016 | M4: Page 2 of 2
M6: Public
M7: Counsel
I8: Public | K8: Public | M8: Revenue
A9: Line | E9: Schedule | I9: Counsel | K9: Counsel | M9: Requirement
A10: No. | C10: Description | E10: Reference | G10: Component | I10: Adjustments | K10: Multiplier | M10: Amount
I11: (A) | K11: (B) | M11: (C)
E13: D | G13: ROR Difference | K13: =D!$I$28 -> -0.0046
C14: Rate Base | E14: A-1 | G14: GRCF | J14: x | K14: ='A-1'!K20 -> 0.619051
A15: 1 | C15: Rate Base per PSE's Filing | E15: B | I15: =A!G11 -> 5097962433 | K15: =K13/K14 -> -0.007430728648 | M15: =ROUND(I15*K15,0) -> -37881575
E17: D | G17: Rate of Return | K17: =D!$I$22 -> 0.0728
C18: Effect of Public Counsel Adjustments to Rate Base | E18: A-1 | G18: GRCF | J18: x | K18: =K14 -> 0.619051
A19: =A15+1 -> 2 | C19: =Contents!B19 -> White River | E19: =Contents!A19 -> B-1 | I19: =B.1!$G$17 -> -220245.3261 | K19: =$K$17/$K$18 -> 0.1175993577 | M19: =ROUND(I19*K19,0) -> -25901
A20: =A19+1 -> 3 | C20: =Contents!B20 -> Production Adjustment | E20: =Contents!A20 -> B-2 | I20: =B.1!$H$17 -> 5582.558281 | K20: =$K$17/$K$18 -> 0.1175993577 | M20: 657
A21: =A20+1 -> 4 | C21: =Contents!B21 -> Accumulated Depreciation Related to Proposed Depreciation Rates | E21: =Contents!A21 -> B-3 | I21: =B.1!$I$17 -> 13568804 | K21: 0.1175993577 | M21: 1595683
A22: =A21+1 -> 5 | C22: =Contents!B22 -> Accumulated Deferred Income Taxes Related to Proposed Depreciation Rates | E22: =Contents!A22 -> B-4 | I22: =B.1!$J$17 -> -4749081.42 | K22: 0.1175993577 | M22: -558489
A23: 6 | C23: =Contents!B23 -> Electric Plant Held For Future Use | E23: =Contents!A23 -> B-5 | I23: =B.1!$K$17 -> -436565.84 | K23: 0.1175993577 | M23: -51340
A24: 7 | C24: Total Public Counsel Rate Base Adjustments | I24: =SUM(I19:I23) -> 8168493.972
A26: =A24+1 -> 8 | C26: Public Counsel Adjusted Original Cost Rate Base | E26: B | I26: =ROUND(I15+I24,0) -> 5106130927
K27: Public
C28: Net Operating Income | G28: Pre-Tax | I28: Net Operating | K28: Counsel
G29: Operating Income | I29: IncomeAmount | K29: GRCF
C30: Effect of Public Counsel Adjustments on NOI | G30: Amount | I30: Sch C.1 | K30: Sch. A-1
A31: 9 | C31: =Contents!B30 -> Temperature Normalization | E31: =Contents!A30 -> C-1 | G31: =C.1!$G$36 -> 0 | I31: =C.1!$G$40 -> 0 | K31: =$K$14 -> 0.619051 | M31: =-ROUND(I31/K31,0) -> 0
A32: =A31+1 -> 10 | C32: =Contents!B31 -> Bad Debt Expense | E32: =Contents!A31 -> C-2 | G32: =C.1!$H$36 -> -202638 | I32: =C.1!$H$40 -> 131715 | K32: =$K$14 -> 0.619051 | M32: =-ROUND(I32/K32,0) -> -212769
A33: =A32+1 -> 11 | C33: =Contents!B32 -> Incentive Compensation | E33: =Contents!A32 -> C-3 | G33: =C.1!$I$36 -> 411467.794 | I33: =C.1!$I$40 -> -267453.794 | K33: 0.619051 | M33: =-ROUND(I33/K33,0) -> 432038
A34: 12 | C34: =Contents!B33 -> Interest on Customer Deposits | E34: =Contents!A33 -> C-4 | G34: =C.1!$J$36 -> 68434.68187 | I34: =C.1!$J$40 -> -68434.68187 | K34: 0.619051 | M34: 110548
A35: 13 | C35: =Contents!B34 -> Payroll Expense | E35: =Contents!A34 -> C-5 | G35: =C.1!$K$36 -> -214342.6573 | I35: =C.1!$K$40 -> 139322.6573 | K35: 0.619051 | M35: -225058
A36: 14 | C36: =Contents!B35 -> Investment Plan Expense | E36: =Contents!A35 -> C-6 | G36: =C.1!$L$36 -> -15134 | I36: =C.1!$L$40 -> 9837 | K36: 0.619051 | M36: -15890
A37: 15 | C37: =Contents!B36 -> Power Costs | E37: =Contents!A36 -> C-7 | G37: =C.1!$M$36 -> -4289344.57 | I37: =C.1!$M$40 -> 4728594.482 | K37: 0.619051 | M37: -7638457
A38: 16 | C38: =Contents!B37 -> Montana Electric Energy Tax | E38: =Contents!A37 -> C-8 | G38: =C.1!$N$36 -> -24331.18135 | I38: =C.1!$N$40 -> 15815.18135 | K38: 0.619051 | M38: -25547
A39: 17 | C39: =Contents!B38 -> Storm Damage Expense | E39: =Contents!A38 -> C-9 | G39: =C.1!$O$36 -> -1440528.558 | I39: =C.1!$O$40 -> 936343.5583 | K39: 0.619051 | M39: -1512547
A40: 18 | C40: =Contents!B39 -> White River Amortization Expense | E40: =Contents!A39 -> C-10 | G40: =C.1!$P$36 -> -135536 | I40: =C.1!$P$40 -> 88098 | K40: 0.619051 | M40: -142311
A41: 19 | C41: =Contents!B40 -> Production Adjustment | E41: =Contents!A40 -> C-11 | G41: =C.1!$Q$36 -> 2501.769219 | I41: =C.1!$Q$40 -> -1625.769219 | K41: 0.619051 | M41: 2626
A42: 20 | C42: =Contents!B41 -> Depreciation and Amortization Expense at Proposed New Depreciation Rates | E42: =Contents!A41 -> C-12 | G42: =C.1!$R$36 -> -27137608.12 | I42: =C.1!$R$40 -> 17639445.12 | K42: 0.619051 | M42: -28494333
A43: 21 | C43: =Contents!B42 -> Interest Synchronization | E43: =Contents!A42 -> C-13 | G43: =C.1!$S$36 -> 0 | I43: =C.1!$S$40 -> 85483 | K43: 0.619051 | M43: -138087
A44: =A43+1 -> 22 | C44: =Contents!B43 -> Pension Expense | E44: =Contents!A43 -> C-14 | G44: =C.1!$T$36 -> -1151480.19 | I44: =C.1!$T$40 -> 748462.1901 | K44: 0.619051 | M44: -1209048
A45: =A44+1 -> 23 | C45: =Contents!B44 -> Environmental Remediation | E45: =Contents!A44 -> C-15 | G45: =C.1!$U$36 -> -572136.4674 | I45: =C.1!$U$40 -> 371888.4674 | K45: 0.619051 | M45: -600740
A46: 24 | C46: =Contents!B45 -> Credit Card Payment Processing Costs | E46: =Contents!A45 -> C-16 | G46: =C.1!$V$36 -> -1657354.025 | I46: =C.1!$V$40 -> 1077280.025 | K46: 0.619051 | M46: -1740212
A47: 25 | C47: Total Public Counsel Adjustments to Operating Income | E47: C.1 | G47: =SUM(G31:G46) -> -36358029.52 | I47: =SUM(I31:I46) -> 25634770.43
A48: =A47+1 -> 26 | C48: Net Operating Income per Company Filing | E48: C | I48: ='C'!E42 -> 302305321.6
A49: =A48+1 -> 27 | C49: Public Counsel Adjusted Net Operating Income | E49: C | I49: =SUM(I47:I48) -> 327940092
C51: Gross Revenue Conversion Factor Difference:
A52: =A49+1 -> 28 | C52: Per Public Counsel | E52: A-1 | K52: ='A-1'!K20 -> 0.619051
A53: =A52+1 -> 29 | C53: Per Company | E53: A-1 | K53: ='A-1'!G20 -> 0.619051
A54: 30 | C54: Difference | K54: =K52-K53 -> 0
A55: 31 | C55: Company Adjusted NOI Deficiency | E55: A | K55: =A!G15 -> 92276970.42
A56: =A55+1 -> 32 | C56: GRCF Difference | M56: =K55*K54 -> 0
A57: 33 | C57: PUBLIC COUNSEL REVENUE REQUIREMENT ADJUSTMENTS ABOVE | M57: =SUM(M15:M56) -> -78330752
A58: 34 | C58: Company Requested Base Rate Revenues | E58: A | M58: =A!G17 -> 149061984
A59: 35 | C59: Reconciled Revenue Requirement | M59: =M57+M58 -> 70731232
A60: =A59+1 -> 36 | C60: Revenue Requirement Calculated on Schedule A | E60: A | M60: =A!I17 -> 70731231
A61: 37 | C61: Unidentified Difference | M61: =M59-M60 -> 1
A62: =A61+1 -> 38 | C62: Unidentified Difference as percent of Public Counsel base rate revenue increase | M62: =M61/M60 -> 1.413802624e-08
A64: Notes and Source
A65: Pre-tax return computed using Gross Revenue Conversion Factor

Sheet A-1
A1: =Contents!A1 -> Puget Sound Energy | M1: =Contents!A3 -> Exhibit RCS-3
A2: Gross Revenue Conversion Factor | M2: Schedule A-1
M3: =Contents!A2 -> Docket No. UE-170033
A4: =A!A4 -> Test Year Ended September 30, 2016 | M4: Page 1 of 1
K7: Public
A8: Line | E8: Tax | G8: Company | I8: Tax | K8: Counsel
A9: No. | C9: Description | E9: Rate | G9: Proposed | I9: Rate | K9: Proposed
E10: (A) | G10: (B) | I10: (C) | K10: (D)
A12: 1 | C12: Bad Debts | G12: 0.007157 | J12: 0.007157 | K12: 0.007157
A13: =A12+1 -> 2 | C13: Annual Filing Fee | G13: 0.002 | J13: 0.002 | K13: 0.002
A14: =A13+1 -> 3 | C14: State Utility Tax (0% - (Line 1 * 3.8734%) | E14: 0.038734 | G14: =ROUND(E14-(E14*G12),6) -> 0.038457 | I14: 0.038734 | K14: =ROUND(I14-(I14*K12),6) -> 0.038457
A16: =A14+1 -> 4 | C16: Sum of Taxes Other | G16: =ROUND(SUM(G12:G14),6) -> 0.047614 | K16: =ROUND(SUM(K12:K14),6) -> 0.047614
A18: =A16+1 -> 5 | C18: Conversion Factor Excluding Federal Income Tax (1 - Line 0.941131) | G18: =ROUND(1-G16,6) -> 0.952386 | K18: =ROUND(1-K16,6) -> 0.952386
A19: =A18+1 -> 6 | C19: Federal Income Taxes | E19: 0.35 | G19: =+G18*E19 -> 0.3333351 | I19: 0.35 | K19: =+K18*I19 -> 0.3333351
A20: =A19+1 -> 7 | C20: Gross Revenue Conversion Factor | G20: =ROUND(G18-G19,6) -> 0.619051 | K20: =ROUND(K18-K19,6) -> 0.619051
A23: Notes and Source
A24: Col. A: | C24: PSE Exhibit__(KJB-3), page 3
A25: Col. C: | C25: Derived from Column B
C27: Components of Revenue Requirement Increase | K27: Public
G28: PSE | I28: Percent | K28: Counsel | M28: Percent
A29: =A20+1 -> 8 | C29: Net Income | G29: =A!G15 -> 92276970.42 | I29: =ROUND(G29/G34,6) -> 0.619051 | K29: =ROUND(K36*M29,0) -> 43786239 | M29: =K20 -> 0.619051
A30: =A29+1 -> 9 | C30: Bad Debts | G30: 1066836.634 | I30: =ROUND(G30/G34,6) -> 0.007157 | K30: =ROUND(K36*M30,0) -> 506223 | M30: =K12 -> 0.007157
A31: =A30+1 -> 10 | C31: Annual Filing Fee | G31: 298123.972 | I31: =ROUND(G31/G34,6) -> 0.002 | K31: =ROUND(K36*M31,0) -> 141462 | M31: =K13 -> 0.002
A32: =A31+1 -> 11 | C32: State Utility Tax | G32: 5732476.796 | I32: =ROUND(G32/G34,6) -> 0.038457 | K32: =ROUND(K36*M32,0) -> 2720111 | M32: =K14 -> 0.038457
A33: =A32+1 -> 12 | C33: Current Income Taxes | G33: 49687577.1 | I33: =ROUND(G33/G34,6) -> 0.333335 | K33: =ROUND(K36*M33,0) -> 23577202 | M33: =K19 -> 0.3333351
A34: =A33+1 -> 13 | C34: Total Revenue Increase | G34: =SUM(G29:G33) -> 149061984.9 | I34: =SUM(I29:I33) -> 1 | K34: =SUM(K29:K33) -> 70731237 | M34: =SUM(M29:M33) -> 1.0000001
A36: =A34+1 -> 14 | C36: Total Revenue Increase (From Schedule A) | K36: =A!$I$17 -> 70731231

Sheet B
A1: =Contents!A1 -> Puget Sound Energy | I1: =Contents!A3 -> Exhibit RCS-3
A2: Adjusted Rate Base | I2: Schedule B
I3: =Contents!A2 -> Docket No. UE-170033
A4: =A!A4 -> Test Year Ended September 30, 2016 | I4: Page 1 of 1
G6: Public | I6: Public
A7: Line | E7: Company | G7: Counsel | I7: Counsel
A8: No. | C8: Description | E8: Proposed | G8: Adjustments | I8: Proposed
E9: (A) | G9: (B) | I9: (C)
A11: 1 | C11: Gross Utility Plant in Service | E11: 9709883806 | G11: =B.1!E11 -> -436565.84 | I11: =E11+G11 -> 9709447240
A12: =A11+1 -> 2 | C12: Accumulated Depreciation & Amortization | E12: -3808860830 | G12: =B.1!E12 -> 13568804 | I12: =E12+G12 -> -3795292026
A13: =A12+1 -> 3 | C13: Net Utility Plant in Service | E13: =E11+E12 -> 5901022976 | G13: =G11+G12 -> 13132238.16 | I13: =I11+I12 -> 5914155214
A15: =A13+1 -> 4 | C15: Deferred Debits and Credits | E15: 284673057.4 | G15: =B.1!E13 -> -333257.4417 | I15: =E15+G15 -> 284339799.9
A16: =A15+1 -> 5 | C16: Deferred Taxes | E16: -1235015209 | G16: =B.1!E14 -> -4630486.746 | I16: =E16+G16 -> -1239645696
A17: =A16+1 -> 6 | C17: Allowance for Working Capital | E17: 227005241.7 | G17: =B.1!E15 -> 0 | I17: =E17+G17 -> 227005241.7
A18: 7 | C18: Other | E18: -79723632.79 | G18: =B.1!E16 -> 0 | I18: =E18+G18 -> -79723632.79
A19: =A18+1 -> 8 | C19: Total Rate Base | E19: =E13+SUM(E15:E18) -> 5097962433 | G19: =G13+SUM(G15:G18) -> 8168493.972 | I19: =I13+SUM(I15:I18) -> 5106130927
A22: Notes and Source
A23: Col.A: PSE Exhibit__(KJB-4), page 1 of 6
A24: Col.B: Schedule B.1

Sheet B.1
A1: =Contents!A1 -> Puget Sound Energy | K1: =Contents!A3 -> Exhibit RCS-3
A2: Summary of Adjustments to Rate Base | K2: Schedule B.1
K3: =Contents!A2 -> Docket No. UE-170033
A4: =A!A4 -> Test Year Ended September 30, 2016 | K4: Page 1 of 1
A7: Line No. | C7: Description | E7: Public Counsel Adjustments | G7: White River | H7: Production Adjustment | I7: Accumulated Depreciation Related to Proposed Depreciation Rates | J7: ADIT Related to Proposed Depreciation Rates | K7: Plant Held For Future Use
G8: =Contents!$A$19 -> B-1 | H8: =Contents!$A$20 -> B-2 | I8: B-3 | J8: =Contents!$A$22 -> B-4 | K8: B-5
C10: Utility Plant in Service
A11: 1 | C11: Gross Utility Plant in Service | E11: =SUM(G11:K11) -> -436565.84 | K11: ='B-5'!K13 -> -436565.84
A12: =A11+1 -> 2 | C12: Accumulated Depreciation and Amortization | E12: =SUM(G12:K12) -> 13568804 | I12: ='B-3'!E14 -> 13568804
A13: =A12+1 -> 3 | C13: Deferred Debits and Credits | E13: =SUM(G13:K13) -> -333257.4417 | G13: ='B-1'!$I$12+'B-1'!I17 -> -338840 | H13: ='B-2'!E12 -> 5582.558281
A14: 4 | C14: Deferred Taxes | E14: =SUM(G14:K14) -> -4630486.746 | G14: ='B-1'!I18 -> 118594.6739 | J14: ='B-4'!T28 -> -4749081.42
A15: 5 | C15: Allowance for Working Capital | E15: 0
A16: 6 | C16: Other | E16: 0
A17: =A16+1 -> 7 | C17: Total Rate Base | E17: =SUM(E11:E16) -> 8168493.972 | G17: =SUM(G11:G16) -> -220245.3261 | H17: 5582.558281 | I17: 13568804 | J17: -4749081.42 | K17: -436565.84

Sheet C
A1: =Contents!A1 -> Puget Sound Energy | M1: =Contents!A3 -> Exhibit RCS-3
A2: Adjusted Net Operating Income | M2: Schedule C
M3: =Contents!A2 -> Docket No. UE-170033
A4: =A!A4 -> Test Year Ended September 30, 2016 | M4: Page 1 of 1
K6: Public Counsel | M6: Public Counsel
G7: Public | I7: Public | K7: Revenue | M7: Proposed With
A8: Line | E8: Per | G8: Counsel | I8: Counsel | K8: Requirement | M8: Revenue
A9: No. | C9: Description | E9: Company | G9: Adjustments | I9: Proposed | K9: Change | M9: Increase
E10: (A) | G10: (B) | I10: (C ) | K10: (D) | M10: (E)
C11: Operating Revenues
A12: 1 | C12: Sales to Customers | E12: 1963187085 | G12: =C.1!E10 -> 0 | I12: =E12+G12 -> 1963187085
A13: =A12+1 -> 2 | C13: Sales from Resale - Firm Special Contract | E13: 316389.1 | G13: =C.1!E11 -> 0 | I13: =E13+G13 -> 316389.1
A14: =A13+1 -> 3 | C14: Sales to Other Utilities | E14: 28431646.32 | G14: =C.1!E12 -> 1712711.202 | I14: =E14+G14 -> 30144357.52
A15: =A14+1 -> 4 | C15: Other Operating Revenue | E15: 72413912.63 | G15: =C.1!E13 -> 1272705.711 | I15: =E15+G15 -> 73686618.34
A16: =A15+1 -> 5 | C16: Total Operating Revenue | E16: =SUM(E12:E15) -> 2064349033 | G16: =SUM(G12:G15) -> 2985416.912 | I16: =SUM(I12:I15) -> 2067334450 | K16: ='A-1'!K34 -> 70731237 | M16: =I16+K16 -> 2138065687
C18: Power Costs
A19: =A16+1 -> 6 | C19: Fuel | E19: 207644166.7 | G19: =C.1!E17 -> -3067477.328 | I19: =E19+G19 -> 204576689.3 | M19: =I19+K19 -> 204576689.3
A20: =A19+1 -> 7 | C20: Purchased and Interchanged | E20: 447825754 | G20: =C.1!E18 -> -1207070.969 | I20: =E20+G20 -> 446618683 | M20: 446618683
A21: 8 | C21: Wheeling | E21: 108574737.6 | G21: =C.1!E19 -> -13979.62966 | I21: 108560757.9 | M21: 108560757.9
A22: 9 | C22: Residential Exchange | E22: 0 | G22: =C.1!E20 -> 0 | I22: 0 | M22: 0
A23: 10 | C23: Total Production Expenses | E23: =SUM(E19:E22) -> 764044658.2 | G23: =SUM(G19:G22) -> -4288527.926 | I23: =SUM(I19:I22) -> 759756130.3 | K23: =SUM(K19:K22) -> 0 | M23: =SUM(M19:M22) -> 759756130.3
A25: =A23+1 -> 11 | C25: Other Power Supply Expenses | E25: 135758889.7 | G25: =C.1!E23 -> 52719.3834 | I25: 135811609.1 | M25: 135811609.1
A26: 12 | C26: Transmission Expense | E26: 20341527.35 | G26: =C.1!E24 -> 10723.12271 | I26: 20352250.48 | M26: 20352250.48
A27: 13 | C27: Distribution Expense | E27: 83384764.47 | G27: =C.1!E25 -> 68316.33864 | I27: 83453080.81 | M27: 83453080.81
A28: 14 | C28: Customer Accounts Expenses | E28: 50326934.11 | G28: =C.1!E26 -> -1754557.996 | I28: 48572376.11 | M28: 48572376.11
A29: =A28+1 -> 15 | C29: Customer Service Expenses | E29: 2597317.284 | G29: =C.1!E27 -> 1297.60575 | I29: 2598614.89 | M29: 2598614.89
A30: =A29+1 -> 16 | C30: Conservation Amortization | E30: 26209.8 | G30: =C.1!E28 -> 0 | I30: 26209.8 | M30: 26209.8
A31: 17 | C31: Administrative & General Expense | E31: 116672054.9 | G31: =C.1!E29 -> -1158789.04 | I31: 115513265.9 | K31: ='A-1'!$K$30+'A-1'!$K$31 -> 647685 | M31: 116160950.9
A32: 18 | C32: Depreciation | E32: 318264217.6 | G32: =C.1!E30 -> -27011130.33 | I32: 291253087.2 | M32: 291253087.2
A33: 19 | C33: Amortization | E33: 50006947.16 | G33: =C.1!E31 -> -126477.7836 | I33: 49880469.38 | M33: 49880469.38
A34: 20 | C34: Amortization of Property Gain/Loss | E34: 36022872.52 | G34: =C.1!E32 -> -1572629.127 | I34: 34450243.4 | M34: 34450243.4
A35: 21 | C35: Other Operating Expenses | E35: 9489542.128 | G35: =C.1!E33 -> -572136.4674 | I35: 8917405.661 | M35: 8917405.661
A36: 22 | C36: ASC 815 | E36: 0 | G36: =C.1!E34 -> 0 | I36: 0 | M36: 0
A37: 23 | C37: Taxes Other Than Income Taxes | E37: 86577788.5 | G37: =C.1!E35 -> -6837.297253 | I37: 86570951.2 | K37: ='A-1'!K32 -> 2720111 | M37: 89291062.2
A38: 24 | C38: Income Taxes | E38: 46785133.66 | G38: =C.1!E38 -> 13708676 | I38: 60493809.66 | K38: ='A-1'!K33 -> 23577202 | M38: 84071011.66
A39: 25 | C39: Deferred Income Taxes | E39: 41744854.15 | G39: 0 | I39: 41744854.15 | M39: 41744854.15
A40: 26 | C40: Total Operating Expenses | E40: =E23+SUM(E25:E39) -> 1762043712 | G40: =G23+SUM(G25:G39) -> -22649353.52 | I40: =I23+SUM(I25:I39) -> 1739394358 | K40: =K23+SUM(K25:K39) -> 26944998 | M40: =M23+SUM(M25:M39) -> 1766339356
A42: =A40+1 -> 27 | C42: Net Operating Income | E42: =E16-E40 -> 302305321.6 | G42: =G16-G40 -> 25634770.43 | I42: =I16-I40 -> 327940092 | K42: =K16-K40 -> 43786239 | M42: =I42+K42 -> 371726331
A44: =A42+1 -> 28 | C44: Rate Base | E44: =B!E19 -> 5097962433 | G44: =B!G19 -> 8168493.972 | I44: =E44+G44 -> 5106130927 | M44: =I44+K44 -> 5106130927
A46: =A44+1 -> 29 | C46: Rate of Return | E46: =E42/E44 -> 0.05929924466 | I46: =I42/I44 -> 0.06422477149 | M46: =M42/M44 -> 0.0727999999
A48: Notes and Source
A49: Col.A: | C49: PSE Exhibit No. __(KJB-4), page 1 of 6
A50: Col.B: | C50: Schedule C.1
A51: Col.C: | C51: Col.A + Col.B

Sheet C.1
A1: =Contents!A1 -> Puget Sound Energy | M1: =Contents!A3 -> Exhibit RCS-3 | V1: =Contents!A3 -> Exhibit RCS-3
A2: Summary of Net Operating Income Adjustments | M2: Schedule C.1 | V2: Schedule C.1
M3: =Contents!A2 -> Docket No. UE-170033 | V3: =Contents!A2 -> Docket No. UE-170033
A4: =A!A4 -> Test Year Ended September 30, 2016 | M4: Page 1 of 2 | V4: Page 2 of 2
A6: Line No. | C6: Description | E6: Public Counsel Adjustments | G6: Temperature Normalization | H6: Bad Debt Expense | I6: Incentive Compensation | J6: Interest on Customer Deposits | K6: Payroll Expense | L6: Investment Plan | M6: Power Costs | N6: Montana Electric Energy Tax | O6: Storm Damage Expense | P6: White River Amortization Expense | Q6: Production Adjustment | R6: Depreciation & Amortization Expense Under Proposed Rates | S6: Interest Synchronization | T6: Pension Expense | U6: Environmental Remediation | V6: Credit Card Payment Processing Costs
G7: =G56 -> C-1 | H7: =H56 -> C-2 | I7: C-3 | J7: C-4 | K7: C-5 | L7: C-6 | M7: C-7 | N7: C-8 | O7: C-9 | P7: =P56 -> C-10 | Q7: =Q56 -> C-11 | R7: =R56 -> C-12 | S7: C-13 | T7: C-14 | U7: C-15 | V7: C-16
G8: N/A for Electric
C9: Operating Revenues
A10: 1 | C10: Sales to Customers | E10: =SUM(G10:Z10) -> 0
A11: =A10+1 -> 2 | C11: Sales from Resale - Firm Special Contract | E11: =SUM(G11:Z11) -> 0
A12: =A11+1 -> 3 | C12: Sales to Other Utilities | E12: 1712711.202 | M12: ='C-7'!K12 -> 1712711.202
A13: =A12+1 -> 4 | C13: Other Operating Revenue | E13: 1272705.711 | M13: ='C-7'!K13 -> 1272705.711
A14: =A13+1 -> 5 | C14: Total Operating Revenue | E14: =SUM(E10:E13) -> 2985416.912 | G14: =SUM(G10:G13) -> 0 | H14: 0 | I14: 0 | J14: 0 | K14: 0 | L14: 0 | M14: 2985416.912 | N14: 0 | O14: 0 | P14: 0 | Q14: 0 | R14: 0 | S14: 0 | T14: 0 | U14: 0 | V14: 0
C16: Power Costs
A17: =A14+1 -> 6 | C17: Fuel | E17: =SUM(G17:Z17) -> -3067477.328 | M17: ='C-7'!$K$17+'C-7'!$K$18 -> -3067477.328
A18: =A17+1 -> 7 | C18: Purchased and Interchanged | E18: -1207070.969 | I18: ='C-3'!I12 -> 17046.69246 | K18: ='C-5'!I12 -> -16208.8114 | M18: ='C-7'!K19 -> -1207887.612 | Q18: ='C-11'!E10 -> -21.23777112
A19: =A18+1 -> 8 | C19: Wheeling | E19: -13979.62966 | M19: ='C-7'!K21 -> -13979.62966
A20: =A19+1 -> 9 | C20: Residential Exchange | E20: 0
A21: =A20+1 -> 10 | C21: Total Production Expenses | E21: =SUM(E17:E20) -> -4288527.926 | G21: =SUM(G17:G20) -> 0 | H21: 0 | I21: 17046.69246 | J21: 0 | K21: -16208.8114 | L21: 0 | M21: -4289344.57 | N21: 0 | O21: 0 | P21: 0 | Q21: -21.23777112 | R21: 0 | S21: 0 | T21: 0 | U21: 0 | V21: 0
A22: =A21+1 -> 11
A23: 12 | C23: Other Power Supply Expenses | E23: =SUM(G23:Z23) -> 52719.3834 | I23: ='C-3'!I13 -> 81703.89515 | K23: ='C-5'!I13 -> -27613.48205 | Q23: ='C-11'!E11 -> -1371.029701
A24: 13 | C24: Transmission Expense | E24: 10723.12271 | I24: ='C-3'!I14 -> 35270.01391 | K24: ='C-5'!I14 -> -24546.8912
A25: 14 | C25: Distribution Expense | E25: 68316.33864 | I25: ='C-3'!I15 -> 96476.09304 | K25: ='C-5'!I15 -> -28159.7544
A26: 15 | C26: Customer Accounts Expenses | E26: =SUM(G26:Z26) -> -1754557.996 | H26: ='C-2 '!E10 -> -202638 | I26: ='C-3'!I16 -> 44487.22976 | J26: ='C-4'!E13 -> 68434.68187 | K26: ='C-5'!I16 -> -7487.882778 | V26: ='C-16'!H14 -> -1657354.025
A27: 16 | C27: Customer Service Expenses | E27: 1297.60575 | I27: ='C-3'!$I$17+'C-3'!$I$18 -> 6255.25093 | K27: ='C-5'!$I$17+'C-5'!$I$18 -> -4957.64518
A28: 17 | C28: Conservation Amortization | E28: 0
A29: 18 | C29: Administrative & General Expense | E29: -1158789.04 | I29: ='C-3'!I19 -> 105915.8038 | K29: ='C-5'!I19 -> -98186.06536 | L29: ='C-6'!E10 -> -15134 | Q29: ='C-11'!E12 -> 95.41167365 | T29: ='C-14 '!I12 -> -1151480.19
A30: 19 | C30: Depreciation | E30: -27011130.33 | R30: ='C-12 '!$I$23+'C-12 '!$I$30 -> -27011130.33
A31: 20 | C31: Amortization | E31: -126477.7836 | R31: ='C-12 '!I28 -> -126477.7836
A32: 21 | C32: Amortization of Property Gain/Loss | E32: -1572629.127 | O32: ='C-9 P1'!E12 -> -1440528.558 | P32: ='C-10'!E13 -> -135536 | Q32: ='C-11'!E14 -> 3435.430992
A33: 22 | C33: Other Operating Expenses | E33: -572136.4674 | U33: ='C-15'!I19 -> -572136.4674
A34: 23 | C34: ASC 815 | E34: 0
A35: 24 | C35: Taxes Other Than Income Taxes | E35: -6837.297253 | I35: ='C-3'!I22 -> 24312.81496 | K35: ='C-5'!I22 -> -7182.124886 | N35: ='C-8'!I20 -> -24331.18135 | Q35: ='C-11'!E16 -> 363.1940255
A36: 25 | C36: PRE-TAX OPERATING EXPENSES | E36: =E21+SUM(E23:E35) -> -36358029.52 | G36: =G21+SUM(G23:G35) -> 0 | H36: =H21+SUM(H23:H35) -> -202638 | I36: =I21+SUM(I23:I35) -> 411467.794 | J36: 68434.68187 | K36: -214342.6573 | L36: -15134 | M36: -4289344.57 | N36: -24331.18135 | O36: -1440528.558 | P36: -135536 | Q36: 2501.769219 | R36: -27137608.12 | S36: 0 | T36: -1151480.19 | U36: -572136.4674 | V36: -1657354.025
A37: 26 | C37: PRE-TAX OPERATING INCOME | E37: =E14-E36 -> 39343446.43 | G37: =G14-G36 -> 0 | H37: 202638 | I37: -411467.794 | J37: -68434.68187 | K37: 214342.6573 | L37: 15134 | M37: 7274761.482 | N37: 24331.18135 | O37: 1440528.558 | P37: 135536 | Q37: -2501.769219 | R37: 27137608.12 | S37: 0 | T37: 1151480.19 | U37: 572136.4674 | V37: 1657354.025
A38: 27 | C38: Income Taxes | E38: =SUM(G38:Z38) -> 13708676 | G38: =ROUND(G37*D43,0) -> 0 | H38: =ROUND(H37*D43,0) -> 70923 | I38: =ROUND(I37*D43,0) -> -144014 | J38: =ROUND(J37*E43,0) -> 0 | K38: =ROUND(K37*D43,0) -> 75020 | L38: =ROUND(L37*D43,0) -> 5297 | M38: =ROUND(M37*D43,0) -> 2546167 | N38: =ROUND(N37*D43,0) -> 8516 | O38: =ROUND(O37*D43,0) -> 504185 | P38: =ROUND(P37*D43,0) -> 47438 | Q38: =ROUND(Q37*D43,0) -> -876 | R38: =ROUND(R37*D43,0) -> 9498163 | S38: ='C-13 Int Sync'!E23 -> -85483 | T38: =ROUND(T37*D43,0) -> 403018 | U38: =ROUND(U37*D43,0) -> 200248 | V38: =ROUND(V37*D43,0) -> 580074
A39: 28 | C39: TOTAL OPERATING EXPENSES | E39: =E36+E38 -> -22649353.52 | G39: =G36+G38 -> 0 | H39: =H36+H38 -> -131715 | I39: 267453.794 | J39: 68434.68187 | K39: -139322.6573 | L39: -9837 | M39: -1743177.57 | N39: -15815.18135 | O39: -936343.5583 | P39: -88098 | Q39: 1625.769219 | R39: -17639445.12 | S39: -85483 | T39: -748462.1901 | U39: -371888.4674 | V39: -1077280.025
A40: 29 | C40: OPERATING INCOME | E40: =E37-E38 -> 25634770.43 | G40: =G37-G38 -> 0 | H40: =H37-H38 -> 131715 | I40: -267453.794 | J40: -68434.68187 | K40: 139322.6573 | L40: 9837 | M40: 4728594.482 | N40: 15815.18135 | O40: 936343.5583 | P40: 88098 | Q40: -1625.769219 | R40: 17639445.12 | S40: 85483 | T40: 748462.1901 | U40: 371888.4674 | V40: 1077280.025
A42: Notes and Source
A43: Line 15: Federal Income Tax Rate | D43: 0.35
G55: =Contents!$B$30 -> Temperature Normalization | H55: =Contents!$B$31 -> Bad Debt Expense | I55: =Contents!$B$32 -> Incentive Compensation | J55: =Contents!$B$33 -> Interest on Customer Deposits | K55: =Contents!$B$34 -> Payroll Expense | L55: =Contents!$B$35 -> Investment Plan Expense | M55: =Contents!$B$36 -> Power Costs | N55: =Contents!$B$37 -> Montana Electric Energy Tax | O55: =Contents!$B$38 -> Storm Damage Expense | P55: =Contents!$B$39 -> White River Amortization Expense | Q55: =Contents!$B$40 -> Production Adjustment | R55: =Contents!$B$41 -> Depreciation and Amortization Expense at Proposed New Depreciation Rates | S55: =Contents!$B$43 -> Pension Expense | T55: =Contents!$B$44 -> Environmental Remediation
G56: =Contents!$A$30 -> C-1 | H56: =Contents!$A$31 -> C-2 | I56: =Contents!$A$32 -> C-3 | J56: =Contents!$A$33 -> C-4 | K56: =Contents!$A$34 -> C-5 | L56: =Contents!$A$35 -> C-6 | M56: =Contents!$A$36 -> C-7 | N56: =Contents!$A$37 -> C-8 | O56: =Contents!$A$38 -> C-9 | P56: =Contents!$A$39 -> C-10 | Q56: =Contents!$A$40 -> C-11 | R56: =Contents!$A$41 -> C-12 | S56: =Contents!$A$43 -> C-14 | T56: =Contents!$A$44 -> C-15
E57: Pre-Tax | G57: =$G$37 -> 0 | H57: =$H$37 -> 202638 | I57: =$I$37 -> -411467.794 | J57: =$J$37 -> -68434.68187 | K57: =$K$37 -> 214342.6573 | L57: =$L$37 -> 15134 | M57: =$M$37 -> 7274761.482 | N57: =$N$37 -> 24331.18135 | O57: =$O$37 -> 1440528.558 | P57: =$P$37 -> 135536 | Q57: =$Q$37 -> -2501.769219 | R57: =$R$37 -> 27137608.12 | S57: =$S$37 -> 0 | T57: =$T$37 -> 1151480.19
E58: NOI | G58: =$G$40 -> 0 | H58: =$H$40 -> 131715 | I58: =$I$40 -> -267453.794 | J58: =$J$40 -> -68434.68187 | K58: =$K$40 -> 139322.6573 | L58: =$L$40 -> 9837 | M58: =$M$40 -> 4728594.482 | N58: =$N$40 -> 15815.18135 | O58: =$O$40 -> 936343.5583 | P58: =$P$40 -> 88098 | Q58: =$Q$40 -> -1625.769219 | R58: =$R$40 -> 17639445.12 | S58: =$S$40 -> 85483 | T58: =$T$40 -> 748462.1901

Sheet D
A1: =Contents!A1 -> Puget Sound Energy | I1: =Contents!A3 -> Exhibit RCS-3
A2: Capital Structure and Cost Rates | I2: Schedule D
I3: =Contents!A2 -> Docket No. UE-170033
A4: =A!A4 -> Test Year Ended September 30, 2016 | I4: Page 1 of 1
A7: Line | E7: Pro Forma | G7: Cost | I7: Cost of
A8: No. | C8: Description | E8: Capital | G8: % | I8: Capital
E9: (A) | G9: (B) | I9: (C)
C10: Per Company
A11: 1 | C11: Short & Long Term Debt | E11: 0.515 | G11: 0.05805825243 | I11: =ROUND(E11*G11,4) -> 0.0299
A12: =A11+1 -> 2 | C12: Equity | E12: 0.485 | G12: 0.098 | I12: =ROUND(E12*G12,4) -> 0.0475
A13: =A12+1 -> 3 | C13: Total Cost of Capital | E13: =SUM(E11:E12) -> 1 | I13: =SUM(I11:I12) -> 0.0774
A15: =A13+1 -> 4 | C15: After Tax Debt | E15: =E11 -> 0.515 | G15: =G11 -> 0.05805825243 | I15: =ROUND(I11*0.65,4) -> 0.0194
A16: =A15+1 -> 5 | C16: Equity | E16: =E12 -> 0.485 | G16: =G12 -> 0.098 | I16: =ROUND(E16*G16,4) -> 0.0475
A17: =A16+1 -> 6 | C17: Total After Tax Cost of Capital | E17: =E15+E16 -> 1 | I17: =I15+I16 -> 0.0669
C19: Per Public Counsel
A20: =A17+1 -> 7 | C20: Long-Term Debt | E20: =E11 -> 0.515 | G20: 0.05805825243 | I20: =ROUND(E20*G20,4) -> 0.0299
A21: =A20+1 -> 8 | C21: Preferred Stock | E21: =E12 -> 0.485 | G21: 0.0885 | I21: =ROUND(E21*G21,4) -> 0.0429
A22: =A21+1 -> 9 | C22: Total Capital Structure | E22: =SUM(E20:E21) -> 1 | I22: =SUM(I20:I21) -> 0.0728
A24: =A22+1 -> 10 | C24: After Tax Debt | E24: =E20 -> 0.515 | G24: =G20 -> 0.05805825243 | I24: =ROUND(I20*0.65,4) -> 0.0194
A25: =A24+1 -> 11 | C25: Equity | E25: =E21 -> 0.485 | G25: =G21 -> 0.0885 | I25: =ROUND(E25*G25,4) -> 0.0429
A26: =A25+1 -> 12 | C26: Total After Tax Cost of Capital | E26: =SUM(E24:E25) -> 1 | I26: =SUM(I24:I25) -> 0.0623
A28: =A26+1 -> 13 | C28: Difference | I28: =I22-I13 -> -0.0046
A30: =A28+1 -> 14 | C30: Weighted Cost of Debt | I30: =SUM(I20:I20) -> 0.0299
A32: Notes and Source
A33: Lines 1-6: PSE Exhibit__(KJB-3), page 2
A34: Lines 7-12: Per the recommendation of Public Counsel witness J. Randall Woolridge

Sheet B-1
A1: =Contents!A1 -> Puget Sound Energy | I1: =Contents!A3 -> Exhibit RCS-3
A2: White River | I2: Schedule B-1
I3: =Contents!A2 -> Docket No. UE-170033
A4: =A!A4 -> Test Year Ended September 30, 2016 | I4: Page 1 of 1
E6: PSE | G6: PSE
E7: Supplemental | G7: As-Filed | I7: Public
A8: Line | E8: Rate Year | G8: Rate Year | I8: Counsel
A9: No. | C9: Description | E9: Amount | G9: Amount | I9: Adjustment
E10: (A) | G10: (B) | I10: (C)
A12: 1 | C12: White River Plant Regulatory Asset | E12: 59343051.71 | G12: 59749659.71 | I12: =E12-G12 -> -406608
A13: 2 | C13: White River Plant In Service FERC 101 | E13: 18825.34 | G13: 18825.34 | I13: =E13-G13 -> 0
A14: 3 | C14: White River Future Use Plant 105 | E14: 26606.68 | G14: 26606.68 | I14: 0
A15: 4 | C15: Total White River | E15: =SUM(E12:E14) -> 59388483.73 | G15: =SUM(G12:G14) -> 59795091.73 | I15: =E15-G15 -> -406608
A17: 5 | C17: Accumulated Amortization | E17: -42958950.34 | G17: -43026718.34 | I17: =E17-G17 -> 67768
A18: 6 | C18: Deferred Income Tax Liability | E18: -5734435.043 | G18: -5853029.717 | I18: 118594.6739
A19: 7 | C19: Total White River Net | E19: =SUM(E15:E18) -> 10695098.35 | G19: =SUM(G15:G18) -> 10915343.68 | I19: =E19-G19 -> -220245.3261
A22: Notes and Source
A23: Col. A: Amounts from Adjustment No. 14.11 from PSE's supplemental filing
A24: Col. B: Amounts from Adjustment No. 7.11 from PSE's original filing

Sheet B-2
A1: =Contents!A1 -> Puget Sound Energy | G1: =Contents!A3 -> Exhibit RCS-3
A2: Production Adjustment | G2: Schedule B-2
G3: =Contents!A2 -> Docket No. UE-170033
A4: =A!A4 -> Test Year Ended September 30, 2016 | G4: Page 1 of 1
A8: Line
A9: No. | C9: Description | E9: Amount
E10: (A)
A12: 1 | C12: Rate Year Production Adjustment to Rate Base | E12: =M27 -> 5582.558281
A17: Notes and Source
E21: PSE | G21: PSE | I21: Difference
E22: Supplemental | G22: As-Filed | I22: Between | M22: Public
E23: Rate Year | G23: Rate Year | I23: Supplmental | K23: Production | M23: Counsel
C24: Description | E24: Amount | G24: Amount | I24: and As-Filed | K24: Factor | M24: Adjustment
E25: (B) | G25: (C) | I25: (D) | K25: (E) | M25: (F)
C27: White River Regulatory Asset | E27: 10649666.33 | G27: 10869911.66 | I27: =E27-G27 -> -220245.3261 | K27: 0.025347 | M27: =-I27*K27 -> 5582.558281

Sheet B-3
A1: =Contents!A1 -> Puget Sound Energy | G1: =Contents!A3 -> Exhibit RCS-3
A2: Accumulated Depreciation Related to Proposed Depreciation Rates | G2: Schedule B-3
G3: =Contents!A2 -> Docket No. UE-170033
A4: =A!A4 -> Test Year Ended September 30, 2016 | G4: Page 1 of 1
A8: Line
A9: No. | C9: Description | E9: Amount | G9: Reference
E10: (A)
A12: 1 | C12: Public Counsel Adjustment to Depreciation Expense | E12: ='C-12 '!I32 -> -27137608.12 | G12: A
A13: 2 | C13: Percentage of Public Counsel Adjustment Allocable to Accumulated Depreciation | E13: 0.5
A14: 3 | C14: Public Counsel Adjustment to Accumulated Depreciation | E14: =ROUND(-E12*E13,0) -> 13568804
A18: Notes and Source
A19: A: See Schedule C-12

Sheet B-4
A1: =Contents!A1 -> Puget Sound Energy | V1: =Contents!A3 -> Exhibit RCS-3
A2: Accumulated Deferred Income Taxes Related to Proposed Depreciation Rates | V2: Schedule B-4
V3: =Contents!A2 -> Docket No. UE-170033
A4: Test Year Ended September 30, 2016 | V4: Page 1 of 1
D9: Depreciation Expense | J9: Accummulated Depreciation | O9: Net Book Value | R9: NBV Diff | T9: ADFIT | V9: DFIT
G10: Book Depr. | M10: BOOK | V10: Expense
D11: Tax | F11: Book | G11: Using Tax Basis | J11: Tax | L11: Book | M11: Permanent | O11: Tax | P11: Book | R11: Book > Tax | T11: 0.35 | V11: (o) = -
D12: (d) = (a) x Tax | F12: (e) = (b) x 4.24% | G12: (f) = (c) x 4.24% | H12: Net Difference | M12: Difference | V12: curr month (n)
A13: Line No. | B13: Date | D13: Table | F13: ¸ 12 mos. | G13: ¸ 12 mos. | H13: (g) = (e) x (f) | J13: (h) = prior month - (d) | L13: (i) = prior month - (e) | M13: (j) = prior month - (g) | O13: (k) = (a) + (h) | P13: (l) = (b) + (i) +(j) | R13: (m) = (k) - (l) | T13: (n) = - (m) * 35% | V13: + prior month (n)
D14: (A) | F14: (B) | G14: (C) | H14: (D=B-C) | J14: (E) | L14: (F) | M14: (G) | O14: (H) | P14: (I) | R14: (J) | T14: (K) | V14: (L)
A15: 1 | B15: 2017-12-31 | D15: 0 | F15: 0 | G15: 0 | J15: 0 | L15: 0 | M15: 0 | O15: 0 | P15: 0 | R15: 0 | T15: =-R15*$T$11 -> 0 | V15: 0
A16: 2 | B16: 2018-01-31 | D16: 0 | F16: ='C-12 '!I32/12 -> -2261467.343 | G16: 0 | H16: =F16-G16 -> -2261467.343 | J16: =-D16 -> 0 | L16: =-F16 -> 2261467.343 | M16: =+H16 -> -2261467.343 | O16: =J16 -> 0 | P16: =L16 -> 2261467.343 | R16: =P16-O16 -> 2261467.343 | T16: -791513.57 | V16: =-T16 -> 791513.57
A17: 3 | B17: 2018-02-28 | D17: =D16 -> 0 | E17: 0 | F17: =F16 -> -2261467.343 | G17: 0 | H17: =F17-G17 -> -2261467.343 | J17: =J16-D17 -> 0 | L17: =L16-F17 -> 4522934.686 | M17: =M16+H17 -> -4522934.686 | O17: 0 | P17: 4522934.686 | R17: 4522934.686 | T17: -1583027.14 | V17: =-T17+T16 -> 791513.57
A18: 4 | B18: 2018-03-31 | D18: 0 | F18: -2261467.343 | G18: 0 | H18: -2261467.343 | J18: 0 | L18: 6784402.029 | M18: -6784402.029 | O18: 0 | P18: 6784402.029 | R18: 6784402.029 | T18: -2374540.71 | V18: 791513.57
A19: 5 | B19: 2018-04-30 | D19: 0 | F19: -2261467.343 | G19: 0 | H19: -2261467.343 | J19: 0 | L19: 9045869.372 | M19: -9045869.372 | O19: 0 | P19: 9045869.372 | R19: 9045869.372 | T19: -3166054.28 | V19: 791513.57
A20: 6 | B20: 2018-05-31 | D20: 0 | F20: -2261467.343 | G20: 0 | H20: -2261467.343 | J20: 0 | L20: 11307336.71 | M20: -11307336.71 | O20: 0 | P20: 11307336.71 | R20: 11307336.71 | T20: -3957567.85 | V20: 791513.57
A21: 7 | B21: 2018-06-30 | D21: 0 | F21: -2261467.343 | G21: 0 | H21: -2261467.343 | J21: 0 | L21: 13568804.06 | M21: -13568804.06 | O21: 0 | P21: 13568804.06 | R21: 13568804.06 | T21: -4749081.42 | V21: 791513.57
A22: 8 | B22: 2018-07-31 | D22: 0 | F22: -2261467.343 | G22: 0 | H22: -2261467.343 | J22: 0 | L22: 15830271.4 | M22: -15830271.4 | O22: 0 | P22: 15830271.4 | R22: 15830271.4 | T22: -5540594.99 | V22: 791513.57
A23: 9 | B23: 2018-08-31 | D23: 0 | F23: -2261467.343 | G23: 0 | H23: -2261467.343 | J23: 0 | L23: 18091738.74 | M23: -18091738.74 | O23: 0 | P23: 18091738.74 | R23: 18091738.74 | T23: -6332108.56 | V23: 791513.57
A24: 10 | B24: 2018-09-30 | D24: 0 | F24: -2261467.343 | G24: 0 | H24: -2261467.343 | J24: 0 | L24: 20353206.09 | M24: -20353206.09 | O24: 0 | P24: 20353206.09 | R24: 20353206.09 | T24: -7123622.13 | V24: 791513.57
A25: 11 | B25: 2018-10-31 | D25: 0 | F25: -2261467.343 | G25: 0 | H25: -2261467.343 | J25: 0 | L25: 22614673.43 | M25: -22614673.43 | O25: 0 | P25: 22614673.43 | R25: 22614673.43 | T25: -7915135.7 | V25: 791513.57
A26: 12 | B26: 2018-11-30 | D26: 0 | F26: -2261467.343 | G26: 0 | H26: -2261467.343 | J26: 0 | L26: 24876140.77 | M26: -24876140.77 | O26: 0 | P26: 24876140.77 | R26: 24876140.77 | T26: -8706649.27 | V26: 791513.57
A27: 13 | B27: 2018-12-31 | D27: 0 | F27: -2261467.343 | G27: 0 | H27: -2261467.343 | J27: 0 | L27: 27137608.12 | M27: -27137608.12 | O27: 0 | P27: 27137608.12 | R27: 27137608.12 | T27: -9498162.84 | V27: 791513.57
A28: 14 | B28: Sum/Average | F28: =SUM(F16:F27) -> -27137608.12 | H28: =SUM(H16:H27) -> -27137608.12 | L28: =(L15+L27+SUM(L15:L26)*2)/24 -> 13568804.06 | M28: =(M15+M27+SUM(M15:M26)*2)/24 -> -13568804.06 | T28: =(T15+T27+SUM(T16:T26)*2)/24 -> -4749081.42
A31: Notes and Source
A32: Col. B, line 2: Amount derived by dividing Public Counsel adjustment to depreciation expense on Schedule C-12 by 12

Sheet B-5
A1: =Contents!A1 -> Puget Sound Energy | M1: =Contents!A3 -> Exhibit RCS-3
A2: Electric Plant Held For Future Use | M2: Schedule B-5
M3: =Contents!A2 -> Docket No. UE-170033
A4: =A!A4 -> Test Year Ended September 30, 2016 | M4: Page 1 of 1
I7: Date
A8: Line | C8: PP Asset | G8: Vintage | I8: Recorded in
A9: No. | C9: Number | E9: Description | G9: Year | I9: PHFFU* | K9: Amount | M9: Reference
A11: 1 | C11: 39060 | E11: BPA Kitsap Naval Trans Plant Land RTS | G11: 1992 | I11: 1992-12-31 | K11: -147139.47 | M11: A
A12: 2 | C12: 39061 | E12: BPA Kitsap Naval Trans Plant Land RTS | G12: 1993 | I12: 1992-12-31 | K12: -289426.37 | M12: A
A13: 3 | E13: Total Adjustment to Electric Plant Held For Future Use | K13: =K11+K12 -> -436565.84
A17: Notes and Source
A18: A: Amounts from the revised response to INCU No. 063
A20: * See the response to INCU No. 067

Sheet C-1
A1: =Contents!A1 -> Puget Sound Energy | K1: =Contents!A3 -> Exhibit RCS-3
A2: Temperature Normalization | K2: Schedule C-1
K3: =Contents!A2 -> Docket No. UE-170033
A4: Test Year Ended September 30, 2016 | K4: Page 1 of 1
A6: Line
A7: No. | C7: Description | E7: Amount | G7: Reference
C9: NOT USED FOR ELECTRIC OPERATIONS

Sheet C-2
A1: =Contents!A1 -> Puget Sound Energy | Q1: =Contents!A3 -> Exhibit RCS-3
A2: Bad Debt Expense | Q2: Schedule C-2
Q3: =Contents!A2 -> Docket No. UE-170033
A4: Test Year Ended September 30, 2016 | Q4: Page 1 of 1
A6: Line
A7: No. | C7: Description | E7: Amount | G7: Reference
E8: (A)
A10: 1 | C10: Public Counsel Adjustment to Bad Debt Expense | E10: =Q28 -> -202638 | G10: A
A13: Notes and Source
A14: A: Adjustment derived from Adjustment No. 13.08E from PSE's supplemental filing and calculated below:
M15: Net | O15: Net
M16: Revenues | O16: Revenues
G17: Sales | I17: Other | K17: Sales | M17: Sales to | O17: Sales to
A18: Line | E18: Gross | G18: For Resale | I18: Operating | K18: For Resale | M18: Customers | O18: Customers
A19: No. | C19: Description | E19: Revenues | G19: Other | I19: Revenue | K19: Firm | M19: PSE As-Filed | O19: PSE Supplemental | Q19: Adjustment
E20: (B) | G20: (C) | I20: (D) | K20: (E) | M20: (F) | O20: (G) | Q20: (H)
A22: 2 | C22: Test Period Revenues | E22: 2395339771 | G22: 201125741.7 | I22: 47841338.95 | K22: 324382.2 | M22: =E22-G22-I22-K22 -> 2146048308 | O22: =M22 -> 2146048308
A23: 3 | C23: Temperature Normalization Adjustment | M23: 28313253 | O23: 0
A24: 4 | C24: Normalized Test Period Revenues | M24: =M22+M23 -> 2174361561 | O24: =O22+O23 -> 2146048308
A25: 5 | C25: Proforma Bad Debt Rate | M25: =Q38 -> 0.007157 | O25: =Q38 -> 0.007157
A26: 6 | C26: Proforma Bad Debts | M26: =ROUND(M24*M25,0) -> 15561906 | O26: =ROUND(O24*O25,0) -> 15359268
A27: 7 | C27: Uncollectibles Charged to Expense in Test Year | M27: 16407059.63 | O27: 16407059.63
A28: 8 | C28: Increase (Decrease) Uncollectibles Expense | M28: =M26-M27 -> -845153.63 | O28: =O26-O27 -> -1047791.63 | Q28: =O28-M28 -> -202638
O30: Net
I31: Sales | K31: Other | M31: Sales | O31: Revenues | Q31: Percent
E32: Net | G32: Gross | I32: For Resale | K32: Operating | M32: For Resale | O32: Sales to | Q32: Writeoffs
E33: Writeoffs | G33: Revenues | I33: Other | K33: Revenue | M33: Firm | O33: Customers | Q33: to Revenue
E34: September | G34: May | I34: May | K34: May | M34: May | O34: May
A35: 9 | C35: 12 ME 9/30/2013 AND 5/31/2013 | E35: 13270215.64 | G35: 2127321375 | I35: 29723813.52 | K35: 3626759.24 | M35: 352508.76 | O35: =G35-I35-K35-M35 -> 2093618293 | Q35: =ROUND(E35/O35,6) -> 0.006338
A36: 10 | C36: 12 ME 9/30/2015 AND 5/31/2015 | E36: 13381338.19 | G36: 2006366630 | I36: 33059229.91 | K36: 65827878.81 | M36: 321888.03 | O36: =G36-I36-K36-M36 -> 1907157634 | Q36: =ROUND(E36/O36,6) -> 0.007016
A37: 11 | C37: 12 ME 9/30/2016 AND 5/31/2016 | E37: 17507852.96 | G37: 2204873603 | I37: 51568623.43 | K37: -4047083.27 | M37: 323282.82 | O37: 2157028780 | Q37: 0.008117
A38: 12 | C38: 3-Year of Net Write Off Rate | Q38: =AVERAGE(Q35:Q37) -> 0.007157

Sheet C-3
A1: =Contents!A1 -> Puget Sound Energy | I1: =Contents!A3 -> Exhibit RCS-3
A2: Incentive Compensation | I2: Schedule C-3
I3: =Contents!A2 -> Docket No. UE-170033
A4: Test Year Ended September 30, 2016 | I4: Page 1 of 1
E6: PSE | G6: PSE
E7: Supplemental | G7: As-Filed | I7: Public
A8: Line | E8: Rate Year | G8: Rate Year | I8: Counsel
A9: No. | C9: Description | E9: Amount | G9: Amount | I9: Adjustment
E10: (A) | G10: (B) | I10: (C)
A12: 1 | C12: Purchased Power | E12: 340657.0329 | G12: 323610.3404 | I12: =E12-G12 -> 17046.69246
A13: 2 | C13: Other Power Supply | E13: 1565461.229 | G13: 1483757.334 | I13: =E13-G13 -> 81703.89515
A14: 3 | C14: Transmission | E14: 692669.0495 | G14: 657399.0356 | I14: 35270.01391
A15: 4 | C15: Distribution | E15: 1842545.392 | G15: 1746069.299 | I15: 96476.09304
A16: 5 | C16: Customer Accounts | E16: 842186.3623 | G16: 797699.1325 | I16: 44487.22976
A17: 6 | C17: Customer Service | E17: 107443.714 | G17: 102018.9266 | I17: 5424.78737
A18: 7 | C18: Sales | E18: 16130.09283 | G18: 15299.62927 | I18: 830.4635601
A19: 8 | C19: Administrative & General | E19: 2112756.407 | G19: 2006840.603 | I19: 105915.8038
A20: 9 | C20: Total | E20: =SUM(E12:E19) -> 7519849.28 | G20: =SUM(G12:G19) -> 7132694.301 | I20: =SUM(I12:I19) -> 387154.979
A22: 10 | C22: Payroll Tax Expense | E22: 472236.4788 | G22: 447923.6638 | I22: =E22-G22 -> 24312.81496
A24: 11 | C24: Net Impact on Operating Expenses | I24: =I20+I22 -> 411467.794
A27: Notes and Source
A28: Col. A: Amounts from Adjustment No. 13.09E from PSE's supplemental filing
A29: Col. B: Amounts from Adjustment No. 6.09E from PSE's original filing

Sheet C-4
A1: =Contents!A1 -> Puget Sound Energy | G1: =Contents!A3 -> Exhibit RCS-3
A2: Interest on Customer Deposits | G2: Schedule C-4
G3: =Contents!A2 -> Docket No. UE-170033
A4: Test Year Ended September 30, 2016 | G4: Page 1 of 1
A7: Line
A8: No. | C8: Description | E8: Amount | G8: Reference
E9: (A)
A11: 1 | C11: Interest on Customer Deposits Expense - PSE Supplemental | E11: 176605.6306 | G11: A
A12: 2 | C12: Interest on Customer Deposits Expense - PSE As-Filed | E12: 108170.9488 | G12: B
A13: 3 | C13: Adjustment to Interest on Customer Deposits | E13: =E11-E12 -> 68434.68187 | G13: L1 - L2
A16: Notes and Source
A17: A: Amount from Adjustment No. 13.11E from PSE's supplemental filing
A18: B: Amount from Adjustment No. 6.11E from PSE's original filing

Sheet C-5
A1: =Contents!A1 -> Puget Sound Energy | I1: =Contents!A3 -> Exhibit RCS-3
A2: Payroll Expense | I2: Schedule C-5
I3: =Contents!A2 -> Docket No. UE-170033
A4: Test Year Ended September 30, 2016 | I4: Page 1 of 1
E6: PSE | G6: PSE
E7: Supplemental | G7: As-Filed | I7: Public
A8: Line | E8: Rate Year | G8: Rate Year | I8: Counsel
A9: No. | C9: Description | E9: Amount | G9: Amount | I9: Adjustment
E10: (A) | G10: (B) | I10: (C)
C11: Wages
A12: 1 | C12: Purchased Power | E12: 4511306.481 | G12: 4527515.292 | I12: =E12-G12 -> -16208.8114
A13: 2 | C13: Other Power Supply | E13: 20731146.5 | G13: 20758759.98 | I13: =E13-G13 -> -27613.48205
A14: 3 | C14: Transmission | E14: 9172906.209 | G14: 9197453.1 | I14: -24546.8912
A15: 4 | C15: Distribution | E15: 24400551.45 | G15: 24428711.2 | I15: -28159.7544
A16: 5 | C16: Customer Accounts | E16: 11152893.81 | G16: 11160381.69 | I16: -7487.882778
A17: 6 | C17: Customer Service | E17: 1422849.836 | G17: 1427346.658 | I17: -4496.821917
A18: 7 | C18: Sales | E18: 213614.3411 | G18: 214075.1644 | I18: -460.8232621
A19: 8 | C19: Administrative & General | E19: 27978916.32 | G19: 28077102.38 | I19: -98186.06536
A20: 9 | C20: Total | E20: =SUM(E12:E19) -> 99584184.94 | G20: =SUM(G12:G19) -> 99791345.47 | I20: =SUM(I12:I19) -> -207160.5324
A22: 10 | C22: Payroll Tax Expense | E22: 6619997.575 | G22: 6627179.7 | I22: =E22-G22 -> -7182.124886
A27: Notes and Source
A28: Col. A: Amounts from Adjustment No. 13.16E from PSE's supplemental filing
A29: Col. B: Amounts from Adjustment No. 6.16E from PSE's original filing

Sheet C-6
A1: =Contents!A1 -> Puget Sound Energy | K1: =Contents!A3 -> Exhibit RCS-3
A2: Investment Plan Expense | K2: Schedule C-6
K3: =Contents!A2 -> Docket No. UE-170033
A4: =A!A4 -> Test Year Ended September 30, 2016 | K4: Page 1 of 1
A6: Line
A7: No. | C7: Description | E7: Amount | G7: Reference
E8: (A)
A10: 1 | C10: Adjustment to Investment Plan Expense | E10: =I42 -> -15134 | G10: A
A13: Notes and Source
A14: Col. B: Amounts below from Adjustment No. 13.17E from PSE's supplemental filing
A15: Col. C: Amounts below from Adjustment No. 6.17E from PSE's original filing
E17: PSE | G17: PSE
E18: Supplemental | G18: As-Filed | I18: Public
E19: Rate Year | G19: Rate Year | I19: Counsel
C20: Description | E20: Amount | G20: Amount | I20: Adjustment | K20: Reference
C21: Non-Union (Including Executives) | E21: (B) | G21: (C) | I21: (D)
A22: 2 | C22: Investment Plan Applicable to Management | E22: 7483207.938 | G22: =E22 -> 7483207.938
A23: 3 | C23: Rate Year Non-Union Wage Increase Percentage | E23: 0.0298 | G23: 0.0335
A24: 4 | C24: Rate Year Non-Union Wage Increase | E24: =ROUND(E22*E23,0) -> 223000 | G24: =ROUND(G22*G23,0) -> 250687 | K24: L2 x L3
A25: 5 | C25: Total Company Contribution for Management | E25: =E22+E24 -> 7706207.938 | G25: =G22+G24 -> 7733894.938 | K25: L2 + L4
C27: IBEW
A28: 6 | C28: Investment Plan Applicable to IBEW | E28: 2733666.238 | G28: =E28 -> 2733666.238
A29: 7 | C29: Rate Year IBEW Wage Increase Percentage | E29: 0.006875 | G29: 0.006875
A30: 8 | C30: Rate Year IBEW Wage Increase | E30: =ROUND(E28*E29,0) -> 18794 | G30: =ROUND(G28*G29,0) -> 18794 | K30: L6 x L7
A31: 9 | C31: Total Company Contribution for IBEW | E31: =E28+E30 -> 2752460.238 | G31: =G28+G30 -> 2752460.238 | K31: L6 + L8
C33: UA
A34: 10 | C34: Investment Plan Applicable to UA | E34: 1013154.93 | G34: =E34 -> 1013154.93
A35: 11 | C35: Rate Year UA Wage Increase Percentage | E35: 0.03 | G35: 0.03
A36: 12 | C36: Rate Year UA Wage Increase | E36: =ROUND(E34*E35,0) -> 30395 | G36: =ROUND(G34*G35,0) -> 30395 | K36: L10 x L11
A37: 13 | C37: Total Company Contribution for UA | E37: =E34+E36 -> 1043549.93 | G37: =G34+G36 -> 1043549.93 | K37: L10 + L12
C39: Total
A40: 14 | C40: Total Investment Plan Expense | E40: =E25+E31+E37 -> 11502218.11 | G40: =G25+G31+G37 -> 11529905.11
A41: 15 | C41: Investment Plan Expense applicable to Operations Percentage | E41: 0.5465912059 | G41: 0.5465912059
A42: 16 | C42: Investment Plan Expense Applicable to Operations | E42: =ROUND(E40*E41,0) -> 6287011 | G42: =ROUND(G40*G41,0) -> 6302145 | I42: =E42-G42 -> -15134 | K42: L14 x L15

Sheet C-7
A1: =Contents!A1 -> Puget Sound Energy | K1: =Contents!A3 -> Exhibit RCS-3
A2: Power Costs | K2: Schedule C-7
K3: =Contents!A2 -> Docket No. UE-170033
A4: Test Year Ended September 30, 2016 | K4: Page 1 of 1
G6: PSE | I6: PSE
E7: State | G7: Supplemental | I7: As-Filed | K7: Public
A8: Line | E8: Utility | G8: Rate Year | I8: Rate Year | K8: Counsel
A9: No. | C9: Description | E9: Tax Rate* | G9: Amount | I9: Amount | K9: Adjustment
G10: (A) | I10: (B) | K10: (C)
C11: Operating Revenues
A12: 1 | C12: 447 - Sales For Resale | G12: -30144357.52 | I12: -28431646.32 | K12: =I12-G12 -> 1712711.202
A13: 2 | C13: Purchases/Sales of Non-Core Gas | G13: -16861340.1 | I13: -15588634.39 | K13: =I13-G13 -> 1272705.711
A14: 3 | C14: Total | G14: =G12+G13 -> -47005697.62 | I14: =I12+I13 -> -44020280.71 | K14: =K12+K13 -> 2985416.912
C16: Production Expenses
A17: =A14+1 -> 4 | C17: 501 - Steam Fuel | G17: 77830126.59 | I17: 79063626.17 | K17: =G17-I17 -> -1233499.573
A18: =A17+1 -> 5 | C18: 547 - Fuel | G18: 126746562.7 | I18: 128580540.5 | K18: =G18-I18 -> -1833977.755
A19: =A18+1 -> 6 | C19: 555 - Purchased Power | G19: 432206965.4 | I19: 433414853 | K19: -1207887.612
A20: 7 | C20: 557 - Other Power Expense | G20: 9504882.141 | I20: 9504882.141 | K20: 0
A21: 8 | C21: 565 - Wheeling | G21: 108560757.9 | I21: 108574737.6 | K21: -13979.62966
A22: 9 | C22: Production O&M Expense | G22: 135482346 | I22: 135482346 | K22: 0
A23: 10 | C23: Trans. Exp. Including 500kV O&M | G23: 645351.7375 | I23: 645351.7375 | K23: 0
A24: 11 | C24: 456-1 - Variable Transmission Income - Colstrip, 3rd AC and NI | G24: -9692025.73 | I24: -9692025.73 | K24: 0
A25: 12 | C25: Equity Return on Centralia Transition Coal PPA | G25: 4769481.139 | I25: 4769481.139 | K25: 0
A26: 13 | C26: Increase (Decrease) in Power Costs | G26: =SUM(G17:G25) -> 886054447.9 | I26: =SUM(I17:I25) -> 890343792.5 | K26: =SUM(K17:K25) -> -4289344.57
A29: =A26+1 -> 14 | C29: State Utility Tax Savings Related to Line 10 | E29: ='A-1'!E14 -> 0.038734 | G29: =G24*E29 -> -375410.9246 | I29: =I24*E29 -> -375410.9246 | K29: =G29-I29 -> 0
A32: Notes and Source
A33: Col. A: Amounts from Adjustment No. 13.16E from PSE's supplemental filing
A34: Col. B: Amounts from Adjustment No. 6.16E from PSE's original filing
A36: * See Schedule A-1

Sheet C-8
A1: =Contents!A1 -> Puget Sound Energy | I1: =Contents!A3 -> Exhibit RCS-3
A2: Montana Electric Energy Tax | I2: Schedule C-8
I3: =Contents!A2 -> Docket No. UE-170033
A4: Test Year Ended September 30, 2016 | I4: Page 1 of 1
E6: PSE | G6: PSE
E7: Supplemental | G7: As-Filed | I7: Public
A8: Line | E8: Rate Year | G8: Rate Year | I8: Counsel
A9: No. | C9: Description | E9: Amount | G9: Amount | I9: Adjustment
E10: (A) | G10: (B) | I10: (C)
A12: 1 | C12: Rate Year KWh | E12: 4224063646 | G12: 4295103591
A13: 2 | C13: Transmission Line Loss % for WECC | E13: 0.05 | G13: 0.05
A14: 3 | C14: WETT Tax Rate | E14: 0.00015 | G14: 0.00015
A15: 4 | C15: WETT Tax | E15: =E12*(1-E13)*E14 -> 601929.0695 | G15: =G12*(1-G13)*G14 -> 612052.2618
A16: 5
A17: 6 | C17: EEELT Tax Rate | E17: 0.0002 | G17: 0.0002
A18: 7 | C18: EEELT Tax | E18: =E12*E17 -> 844812.7291 | G18: =G12*G17 -> 859020.7183
A19: 8
A20: 9 | C20: Restated Energy Tax | E20: =E15+E18 -> 1446741.799 | G20: =G15+G18 -> 1471072.98 | I20: =E20-G20 -> -24331.18135
A24: Notes and Source
A25: Col. A: Amounts from Adjustment No. 14.02 from PSE's supplemental filing
A26: Col. B: Amounts from Adjustment No. 7.02 from PSE's original filing

Sheet C-9 P1
A1: =[1]Contents!A1 -> Puget Sound Energy | I1: =Contents!A3 -> Exhibit RCS-3
A2: Storm Damage Expense | I2: Schedule C-9
I3: =[1]Contents!A2 -> Docket No. UE-170033
A4: =[1]A!A4 -> Test Year Ended September 30, 2016 | I4: Page 1 of 2
A6: Line
A7: No. | C7: Description | E7: Amount | G7: Reference
E8: (A)
A10: 1 | C10: Adjustment to Amortization of Storm Damage Expense | E10: =I44 -> 2579170.795 | G10: Line 12
A11: 2 | C11: Adjustment Related to Amortization of "Snowmageddon" Snowstorm | E11: ='C-9 P2'!I49 -> -4019699.353 | G11: See page 2
A12: 3 | C12: Net Adjustment to Storm Damage Expense | E12: =E10+E11 -> -1440528.558
A15: Notes and Source
A16: Col. B: Amounts below from Adjustment No. 14.05 from PSE's supplemental filing
A17: Col. C: Amounts below from Adjustment No. 7.05 from PSE's original filing | E17: PSE | G17: PSE
E18: Supplemental | G18: As-Filed | I18: Public
E19: Rate Year | G19: Rate Year | I19: Counsel
C20: Description | E20: Amount | G20: Amount | I20: Adjustment
E21: (B) | G21: (C) | I21: (D)
C22: DEFERRED BALANCES FOR UE-090704 4 YEAR AMORTIZATION
C23: AT START OF RATE YEAR (01/31/2018):
A24: 2 | C24: 2010 STORM DAMAGE | E24: -12560038.23 | G24: -12560038.23
A25: =A24+1 -> 3 | C25: 2010 STORM DAMAGE PENDING APPROVAL | E25: 50185.88 | G25: 50185.88
A26: =A25+1 -> 4 | C26: 2014 STORM DAMAGE-PENDING APPROVAL | E26: 18185672.66 | G26: 18185672.66
A27: 5 | C27: 2015 STORM DAMAGE-PENDING APPROVAL | E27: 24157767.12 | G27: 24157767.12
A28: 6 | C28: 2016 STORM DAMAGE-PENDING APPROVAL | E28: 10432666.54 | G28: 8269006
E29: 8153022.64 | G29: 0
A30: =A28+1 -> 7 | C30: TOTAL | E30: =SUM(E24:E29) -> 48419276.61 | G30: =SUM(G24:G29) -> 38102593.43
A32: =A30+1 -> 8 | C32: ANNUAL AMORTIZATION (LINE 26 ÷ 48) x 12 | E32: =(E30/48)*12 -> 12104819.15 | G32: =(G30/48)*12 -> 9525648.357
C35: DEFERRED BALANCES FOR 10 YEAR AMORTIZATION AT
C36: START OF RATE YEAR (01/31/18):
A37: =A32+1 -> 9 | C37: 12/13/06 WIND STORM ANNUAL AMORTIZATION | E37: 6632821 | G37: 6632821
C38: ORIGINAL AMORT PERIOD FROM UE-072300 WAS 10 YEARS, NOV 2008 - OCT 2018
C40: DEFERRED BALANCES FOR 6 YEAR AMORTIZATION AT
A41: =A37+1 -> 10 | C41: 01/18/12 SNOW STORM - PENDING APPROVAL | E41: 60295490.3 | G41: 60295490.3
A42: =A41+1 -> 11 | C42: ANNUAL AMORTIZATION (LINE 37 ¸ 72 (6 YEARS) X 12) | E42: =(E41/72)*12 -> 10049248.38 | G42: =(G41/72)*12 -> 10049248.38
A44: =A42+1 -> 12 | C44: TOTAL RATE YEAR AMORTIZATION (LINE 27 + LINE 34 + LINE 38) | E44: =E32+E37+E42 -> 28786888.54 | G44: =G32+G37+G42 -> 26207717.74 | I44: =E44-G44 -> 2579170.795

Sheet C-9 P2
A1: =Contents!A1 -> Puget Sound Energy | I1: =Contents!A3 -> Exhibit RCS-3
A2: Storm Damage Expense | I2: Schedule C-9
I3: =Contents!A2 -> Docket No. UE-170033
A4: Test Year Ended September 30, 2016 | I4: Page 2 of 2
G6: Pubic | I6: Public
A7: Line | E7: Per | G7: Counsel | I7: Counsel
A8: No. | B8: Description | E8: Puget | G8: Amount | I8: Adjustment
A9: 1
A10: =A9+1 -> 2 | B10: NORMAL STORMS | C10: Transmission | D10: Distribution | E10: Total
A11: 3 | B11: TWELVE MONTHS ENDED 09/30/11 | C11: 146577.86 | D11: 9324412.69 | E11: =SUM(C11:D11) -> 9470990.55
A12: 4 | B12: TWELVE MONTHS ENDED 09/30/12 | C12: 330553.88 | D12: 11614287.55 | E12: 11944841.43
A13: 5 | B13: TWELVE MONTHS ENDED 09/30/13 | C13: 115489.18 | D13: 5128914.88 | E13: 5244404.06
A14: 6 | B14: TWELVE MONTHS ENDED 09/30/14 | C14: 427808.2 | D14: 12676575.68 | E14: 13104383.88
A15: 7 | B15: TWELVE MONTHS ENDED 09/30/15 | C15: 718705.77 | D15: 12394591.87 | E15: 13113297.64
A16: 8 | B16: TWELVE MONTHS ENDED 09/30/16 | C16: 506068.88 | D16: 10553488.41 | E16: 11059557.29
A17: 9 | B17: TOTAL NORMAL STORMS | C17: =SUM(C11:C16) -> 2245203.77 | D17: =SUM(D11:D16) -> 61692271.08 | E17: =SUM(E11:E16) -> 63937474.85
A18: 10
A19: 11 | B19: SIX-YEAR AVERAGE STORM EXPENSE FOR RATE YEAR (LINE 9 ÷ 6 YEARS) | C19: =C17/6 -> 374200.6283 | D19: =D17/6 -> 10282045.18 | E19: =+E17/6 -> 10656245.81 | G19: =E19 -> 10656245.81 | I19: =G19-E19 -> 0
A20: 12
A21: 13 | B21: TEST YEAR STORM DAMAGE EXPENSE (LINE 8) | C21: =C16 -> 506068.88 | D21: =D16 -> 10553488.41 | E21: =E16 -> 11059557.29 | G21: =E21 -> 11059557.29 | I21: =G21-E21 -> 0
A22: 14
A23: 15 | B23: INCREASE (DECREASE) OPERATING EXPENSE (LINE 11-LINE 14) | C23: =C19-C21 -> -131868.2517 | D23: =D19-D21 -> -271443.23 | E23: =E19-E21 -> -403311.4817 | G23: =G19-G21 -> -403311.4817 | I23: =I19-I21 -> 0
B25: CATASTROPHIC STORMS
A26: =A23+3 -> 18 | B26: DEFERRED BALANCES FOR 4 YEAR AMORTIZATION
A28: =A26+1 -> 19 | B28: AT START OF RATE YEAR (01/31/2018): | C28: Per Company | G28: Per Public Counsel
A29: 20 | B29: 2010 STORM DAMAGE | C29: ='[2]Storm Cost Deferrals'!E12 -> -12560038.23
A30: 21 | B30: 2010 STORM DAMAGE PENDING APPROVAL | C30: ='[2]Storm Cost Deferrals'!E11 -> 50185.88
A31: 22 | B31: 2014 STORM DAMAGE-PENDING APPROVAL | C31: ='[2]Storm Cost Deferrals'!E13 -> 18185672.66
A32: 23 | B32: 2015 STORM DAMAGE-PENDING APPROVAL | C32: ='[2]Storm Cost Deferrals'!E14 -> 24157767.12
A33: 24 | B33: 2016 STORM DAMAGE-PENDING APPROVAL | C33: ='[2]Storm Cost Deferrals'!E15 -> 10432666.54
A34: 25 | B34: 2017 STORM DAMAGE-PENDING APPROVAL | C34: ='[2]Storm Cost Deferrals'!C16 -> 8153022.64
A35: 26 | B35: TOTAL (Lines 20 through 25) | C35: =SUM(C29:C34) -> 48419276.61
A36: 27 | B36: ANNUAL AMORTIZATION (LINE 26 / 4) | D36: =C35/4 -> 12104819.15 | G36: =D36 -> 12104819.15 | I36: =G36-D36 -> 0
A37: 28
A38: 29
A39: 30 | B39: DEFERRED BALANCES FOR 10 YEAR AMORTIZATION AT
A40: 31 | B40: START OF RATE YEAR (01/31/18):
A41: 32 | B41: 12/13/06 WIND STORM | C41: ='[2]Storm Cost Deferrals'!E23 -> 6632821
A42: 33 | B42: ORIGINAL AMORT PERIOD FROM UE-072300 WAS 10 YEARS, NOV 2008 - OCT 2018
A43: 34 | B43: ANNUAL AMORTIZATION (LINE 33 ¸ 10 (01/2018 - 10/2018) x 10) | D43: =C41 -> 6632821 | G43: =D43 -> 6632821 | I43: =G43-D43 -> 0
A44: 35
A45: 36 | B45: DEFERRED BALANCES FOR 6 YEAR AMORTIZATION AT | D45: 6 Year | G45: 10 Year
A46: 37 | B46: 01/18/12 "SNOWMAGEDDON" SNOW STORM - PENDING APPROVAL | C46: ='[2]Storm Cost Deferrals'!E20 -> 60295490.3 | D46: Amortization | G46: Amortization
A47: 38 | B47: ANNUAL AMORTIZATION | D47: =C46/6 -> 10049248.38 | G47: =C46/10 -> 6029549.03 | I47: =G47-D47 -> -4019699.353
A48: 39
A49: 40 | B49: TOTAL RATE YEAR AMORTIZATION (LINE 27 + LINE 34 + LINE 38) | D49: =D36+D43+D47 -> 28786888.54 | G49: =G36+G43+G47 -> 24767189.18 | I49: =I36+I43+I47 -> -4019699.353
A51: Notes and Source
A52: Amounts above from Adjustment No. 14.05 from PSE's supplemental filing

Sheet C-10
A1: =Contents!A1 -> Puget Sound Energy | G1: =Contents!A3 -> Exhibit RCS-3
A2: White River Amortization Expense | G2: Schedule C-10
G3: =Contents!A2 -> Docket No. UE-170033
A4: =A!A4 -> Test Year Ended September 30, 2016 | G4: Page 1 of 1
A7: Line
A8: No. | C8: Description | E8: Amount | G8: Reference
E9: (A)
A11: 1 | C11: Rate Year White River Amortization Expense - PSE Supplemental | E11: 6553640.55 | G11: A
A12: 2 | C12: Rate Year White River Amortization Expense - PSE As-Filed | E12: 6689176.55 | G12: B
A13: 3 | C13: Adjustment to White River Amortization Expense | E13: =E11-E12 -> -135536 | G13: L1 - L2
A16: Notes and Source
A17: A: Amount from Adjustment No. 14.11E from PSE's supplemental filing
A18: B: Amount from Adjustment No. 7.11E from PSE's original filing

Sheet C-11
A1: =Contents!A1 -> Puget Sound Energy | M1: =Contents!A3 -> Exhibit RCS-3
A2: Production Adjustment | M2: Schedule C-11
M3: =Contents!A2 -> Docket No. UE-170033
A4: =A!A4 -> Test Year Ended September 30, 2016 | M4: Page 1 of 1
A6: Line
A7: No. | C7: Description | E7: Amount
E8: (A)
A10: 1 | C10: Purchased and Interchanged Power Expense | E10: =M29 -> -21.23777112
A11: 2 | C11: Other Supply Expenses | E11: =M30 -> -1371.029701
A12: 3 | C12: Administrative & General Expense | E12: =SUM(M31:M33) -> 95.41167365
A14: 4 | C14: Amortization of Property Gain/(Loss) | E14: =SUM(M40:M41) -> 3435.430992
A16: 5 | C16: Taxes Other Than Income | E16: =SUM(M36:M37) -> 363.1940255
A18: 6 | C18: Net Impact on Pre Tax Operating Income | E18: =SUM(E10:E16) -> 2501.769219
A21: Notes and Source
A22: Col. B: Amounts below from Adjustment No. 14.13 from PSE's supplemental filing
A23: Col. C: Amounts below from Adjustment No. 7.13 from PSE's original filing
E24: PSE | G24: PSE | I24: Difference
E25: Supplemental | G25: As-Filed | I25: Between | M25: Public
E26: Rate Year | G26: Rate Year | I26: Supplmental | K26: Production | M26: Counsel
E27: Amount | G27: Amount | I27: and As-Filed | K27: Factor | M27: Adjustment
C28: Operating Expense | E28: (B) | G28: (C) | I28: (D) | K28: (E) | M28: (F)
A29: 6 | C29: Wages & Incentive - Other Power 557 | E29: 140926.4574 | G29: 140088.5764 | I29: =E29-G29 -> 837.8810558 | K29: 0.025347 | M29: =-I29*K29 -> -21.23777112
A30: 7 | C30: Wages & Incentive - Production O&M | E30: 337826.0263 | G30: 283735.6132 | I30: =E30-G30 -> 54090.4131 | K30: 0.025347 | M30: =-I30*K30 -> -1371.029701
A31: 8 | C31: Benefits - A&G 926 | E31: 8206061.126 | G31: 8209825.346 | I31: -3764.219578 | K31: 0.025347 | M31: 95.41167365
A32: 9 | C32: Worker's Comp - A&G 926 | E32: 214071.8239 | G32: 214071.8239 | I32: 0 | K32: 0.025347 | M32: 0
A33: 10 | C33: Property Insurance - A&G 926 | E33: 2763777.09 | G33: 2763777.09 | I33: 0 | K33: 0.025347 | M33: 0
C35: Other Taxes
A36: 11 | C36: Montana Energy Tax | E36: 1446741.799 | G36: 1471072.98 | I36: =E36-G36 -> -24331.18135 | K36: 0.038394 | M36: =-I36*K36 -> 934.1713767
A37: 12 | C37: Payroll Taxes | E37: 2119540.304 | G37: 2097013.876 | I37: 22526.42724 | K37: 0.025347 | M37: -570.9773512
M38: 0
C39: Amortization on Regulatory Assets (Excludes Power Regulatory Amortization | M39: 0
A40: 13 | C40: White River Regulatory Asset | E40: 6553640.55 | G40: 6689176.55 | I40: =E40-G40 -> -135536 | K40: 0.025347 | M40: 3435.430992
A41: 14 | C41: Electron Unrecovered Assets | E41: 3786307.84 | G41: 3786307.84 | I41: 0 | K41: 0.025347 | M41: 0
A43: =A41+1 -> 15 | C43: Net Adjustment to Pre-Tax Operating Income | M43: =SUM(M29:M41) -> 2501.769219

Sheet C-12
A1: =Contents!A1 -> Puget Sound Energy | K1: =Contents!A3 -> Exhibit RCS-3
A2: Depreciation and Amortization Expense at Proposed New Depreciation Rates | K2: Schedule C-12
K3: =Contents!A2 -> Docket No. UE-170033
A4: Test Year Ended September 30, 2016 | K4: Page 1 of 1
G6: Proposed
E7: Proposed | G7: Depreciation
E8: Depreciation | G8: Expense Per | I8: Public
A9: Line | E9: Expense Per | G9: Public | I9: Counsel
A10: No. | C10: Description | E10: Company | G10: Counsel | I10: Adjustment | K10: Reference
E11: (A) | G11: (B) | I11: (C)
C12: Depreciation Expense
A13: 1 | C13: 403 Electric Depreciation Expense | E13: 306788477.5 | G13: 282038779.4 | I13: =G13-E13 -> -24749698.06
A14: 2 | C14: 403 Electric Portion of Common | E14: 13232378.86 | G14: 10979268.53 | I14: =G14-E14 -> -2253110.33
A15: 3 | C15: 403 Depreciation Expense on Assets Not Included in Study | E15: 55937.9107 | G15: 55937.9107 | I15: 0
A16: 4 | C16: 404 Depreciation Expense on Assets Not Included in Study | E16: 29770695.19 | G16: 29770695.19 | I16: 0
A17: 5 | C17: Subtotal Depreciation Expense - Account 403 | E17: =SUM(E13:E16) -> 349847489.5 | G17: =SUM(G13:G16) -> 322844681.1 | I17: =SUM(I13:I16) -> -27002808.39
A19: 6 | C19: 403.1 Depreciation Expense - FAS 143 (Recovered in Rates) | E19: 1739313.997 | G19: 1730992.059 | I19: =G19-E19 -> -8321.938226
A20: 7 | C20: 403.1 Depreciation Expense - FAS 143 (Not Recovered in Rates) | E20: 0 | G20: 0 | I20: 0
A21: 8 | C21: Subtotal Depreciation Expense - Account 403.1 | E21: =E19+E20 -> 1739313.997 | G21: =G19+G20 -> 1730992.059 | I21: =I19+I20 -> -8321.938226
A23: 9 | C23: Total Depreciation Expense | E23: =E17+E21 -> 351586803.5 | G23: =G17+G21 -> 324575673.1 | I23: =I17+I21 -> -27011130.33 | K23: L5 + L8
C25: Amortization Expense
A26: 10 | C26: 411.10 Accretion Expense - ASC 410 (Recovered in Rates) | E26: 1820785.213 | G26: 1694307.43 | I26: =G26-E26 -> -126477.7836
A27: 11 | C27: 411.10 Accretion Expense - ASC 410 (Not Recovered in Rates) | E27: 0 | G27: 0 | I27: 0
A28: 12 | C28: Subtotal Accretion Expense - Account 411.10 | E28: =E26+E27 -> 1820785.213 | G28: =G26+G27 -> 1694307.43 | I28: =I26+I27 -> -126477.7836
A30: 13 | C30: Depreciation Expense 403 Associated With Fleet | E30: 539848.8844 | G30: 539848.8844 | I30: =G30-E30 -> 0
A32: 14 | C32: Total Depreciation & Amortization Expense | E32: =E23+E28+E30 -> 353947437.6 | G32: =G23+G28+G30 -> 326809829.4 | I32: =I23+I28+I30 -> -27137608.12 | K32: L9 + L12 + L13
A36: Notes and Source
A37: Col. A: Amounts from Adjustment No. 6.06E from PSE filing
A38: Col. B: Amounts calculated from the depreciation rates proposed by Public Counsel witness Roxie McCullar
A39: Col. C: Col. B - Col. A

Sheet C-13 Int Sync
A1: =Contents!A1 -> Puget Sound Energy | G1: =Contents!A3 -> Exhibit RCS-3
A2: Interest Synchronization | G2: Schedule C-13
G3: =[3]Contents!A2 -> Docket No. UE-170033
A4: =A!A4 -> Test Year Ended September 30, 2016 | G4: Page 1 of 1
A7: Line
A8: No. | C8: Description | E8: Amount | G8: Reference
E9: (A)
A11: 1 | C11: Adjusted Rate Base, per Public Counsel | E11: =B!I19 -> 5106130927 | G11: Schedule B
A13: =A11+1 -> 2 | C13: Weighted Cost of Debt, per Public Counsel | E13: =[3]D!I30 -> 0.0299 | G13: Schedule D
A15: =A13+1 -> 3 | C15: Interest Deduction for Tax Purposes | E15: =E11*E13 -> 152673314.7 | G15: L1 x L2
A17: =A15+1 -> 4 | C17: Interest Deduction per Company | E17: 152429076.8 | G17: Note A
A19: =A17+1 -> 5 | C19: Increase (Decrease) in Deductible Interest | E19: =E15-E17 -> 244237.9686 | G19: L3 - L4
A21: =A19+1 -> 6 | C21: Federal Income Tax Rate | E21: ='[3]A-1'!I19 -> 0.35
A23: =A21+1 -> 7 | C23: Increase (Decrease) to Federal Income Tax Expense | E23: =ROUND(-E19*E21,0) -> -85483 | G23: L5 x L6
A26: Notes and Source:
A27: Note A: Amount from PSE's original filing (Adjustment 6.05) is used for this adjustment. PSE's supplemental
C28: electric filing in Adjustment No. 13.05 used an amount of $152,422,658.

Sheet C-14
A1: =Contents!A1 -> Puget Sound Energy | M1: =Contents!A3 -> Exhibit RCS-3
A2: Pension Expense | M2: Schedule C-14
M3: =Contents!A2 -> Docket No. UE-170033
A4: Test Year Ended September 30, 2016 | M4: Page 1 of 1
G6: Pension
E7: Pension | G7: Expense Per | I7: Public
A8: Line | E8: Expense Per | G8: Public | I8: Counsel
A9: No. | C9: Description | E9: Company | G9: Counsel | I9: Adjustment
E10: (A) | G10: (B) | I10: (C)
A12: 1 | C12: Adjustment to Pension Expense | E12: 7934569.377 | G12: =M32 -> 6783089.187 | I12: =G12-E12 -> -1151480.19
A16: Notes and Source
A17: Col. A: Amount from Adjustment No. 6.15E from PSE's filing
A18: Col. B: Amount derived from the amounts provided in the response to ICNU No. 056 and calculated below:
E20: 2013 Qualified | G20: 2014 Qualified | I20: 2015 Qualified | K20: 2016 Qualified
E21: Pension | G21: Pension | I21: Pension | K21: Pension | M21: 4-Year
C22: Description | E22: Benefits | G22: Benefits | I22: Benefits | K22: Benefits | M22: Average
A23: 2 | C23: Service Cost | E23: 19285000 | G23: 17437000 | I23: 21287000 | K23: 18913000
A24: 3 | C24: Interest Cost | E24: 24753000 | G24: 28039000 | I24: 28088000 | K24: 28689000
A25: 4 | C25: Expected (Return) on Plan Assets | E25: -40685000 | G25: -43252000 | I25: -45462000 | K25: -46814000
A26: 5 | C26: Amortization of Prior Service Cost / (Credit) | E26: -1573000 | G26: -1573000 | I26: -1573000 | K26: -1573000
A27: 6 | C27: Amortization of Net Loss / Gain | E27: 20612000 | G27: 13195000 | I27: 20555000 | K27: 15257000
A28: 7 | C28: Net Periodic Pension Cost | E28: =SUM(E23:E27) -> 22392000 | G28: =SUM(G23:G27) -> 13846000 | I28: =SUM(I23:I27) -> 22895000 | K28: =SUM(K23:K27) -> 14472000 | M28: =AVERAGE(E28:K28) -> 18401250
A29: 8 | C29: O&M Percentage Allocation | E29: 0.5465912059 | G29: 0.5465912059 | I29: 0.5465912059 | K29: 0.5465912059
A30: 9 | C30: O&M Portion of Net Periodic Pension Cost | E30: =E28*E29 -> 12239270.28 | G30: =G28*G29 -> 7568101.837 | I30: =I28*I29 -> 12514205.66 | K30: =K28*K29 -> 7910267.932
A31: 10 | C31: Electric Operations Allocation Percentage | E31: 0.6744 | G31: 0.6744 | I31: 0.6744 | K31: 0.6744
A32: 11 | C32: O&M Portion of Net Periodic Pension Cost For Electric Operations | E32: =E30*E31 -> 8254163.879 | G32: =G30*G31 -> 5103927.879 | I32: =I30*I31 -> 8439580.297 | K32: =K30*K31 -> 5334684.694 | M32: =AVERAGE(E32:K32) -> 6783089.187

Sheet C-15
A1: =Contents!A1 -> Puget Sound Energy | K1: =Contents!A3 -> Exhibit RCS-3
A2: Environmental Remediation | K2: Schedule C-15
K3: =Contents!A2 -> Docket No. UE-170033
A4: Test Year Ended September 30, 2016 | K4: Page 1 of 1
I6: Public
A7: Line | E7: Per | G7: Per | I7: Counsel
A8: No. | C8: Description | E8: Company | G8: Public Counsel | I8: Adjustment | K8: Reference
E9: (A) | G9: (B) | I9: (C)
A11: 1 | C11: Deferred Costs Net of Site Specific Recoveries as of 9/30/2016 | E11: 9596412.3 | G11: =E11 -> 9596412.3
A13: 2 | C13: Recoveries from Insurance or Third Parties Through 9/30/2016 | E13: -5344209.39 | G13: =E13 -> -5344209.39
A14: 3 | C14: Percentage to Allocate a Pro Rata Share of Insurance Proceeds and Third Parties | E14: 0.4647136502 | G14: 1
A15: 4 | C15: Share of Deferred Unassigned Recoveries as of 9/30/2016 | E15: =E13*E14 -> -2483527.053 | G15: =G13*G14 -> -5344209.39 | K15: L2 x L3
A17: 5 | C17: Deferred Costs Net of Site Specific and Unassigned Recoveries as of 9/30/2016 | E17: =E11+E15 -> 7112885.247 | G17: =G11+G15 -> 4252202.91 | K17: L1 + L4
A18: 6 | C18: Amortization Period (Years) | E18: 5 | G18: 5
A19: 7 | C19: Environmental Remediation Amortization Expense | E19: =E17/E18 -> 1422577.049 | G19: =G17/G18 -> 850440.582 | I19: =G19-E19 -> -572136.4674 | K19: L5 / L6
A23: Notes and Source
A24: Cols. A&B: Amounts from Adjustment No. 6.19E from PSE's filing

Sheet C-16
A1: =Contents!A1 -> Puget Sound Energy | H1: =Contents!A3 -> Exhibit RCS-3
A2: Credit Card Payment Processing Costs | H2: Schedule C-16
H3: =Contents!A2 -> Docket No. UE-170033
A4: Test Year Ended September 30, 2016 | H4: Page 1 of 1
F7: Per | H7: Public
A8: Line | F8: Public | H8: Counsel
A9: No. | B9: Description | D9: Per PSE | F9: Counsel | H9: Adjustment
D10: (A) | F10: (B) | H10: (C)
A12: 1 | B12: Customer Records & Collection Expense Deferral - Electric Operations | D12: =D23 -> 2486031.037 | F12: =D23 -> 2486031.037
A13: 2 | B13: Proposed Amortization Period | D13: 1 | F13: 3
A14: 3 | B14: Amortization of Customer Records & Collection Expense Deferral - Electric Operations | D14: =D12/D13 -> 2486031.037 | F14: =F12/F13 -> 828677.0123 | H14: =F14-D14 -> -1657354.025
A17: Notes and Source
A18: Amounts below from Adjustment No. 6.20E and related workpapers from PSE's filing
D20: Electric | F20: Gas | H20: Total
A21: 4 | B21: Total Customer Records & Collection Expense Deferral | D21: 4278146.682 | F21: =D21 -> 4278146.682
A22: 5 | B22: Operations Allocation Percentage | D22: 0.5811 | F22: 0.4189
A23: 6 | B23: Customer Records & Collection Expense Deferral Allocated Between Electric and Gas Operations | D23: =D21*D22 -> 2486031.037 | F23: =F21*F22 -> 1792115.645 | H23: =D23+F23 -> 4278146.682

Sheet <- Used
A1: =Contents!$A$1 -> Puget Sound Energy
